Workbook

Sheet Cover Page
B1: Department of Managed Health Care/Department of Insurance
B2: Medical Loss Ratio Reporting Form
B3: Dental Coverage
A6: 1. | B6: MLR Reporting Year | C6: 2024
A7: 2. | B7: Enter DMHC Health Plan ID. Insurers may leave this field blank
A8: 3. | B8: Legal Name | C8: Dearborn Life Insurance Company
A9: 4. | B9: DBA
A10: 5. | B10: Federal Tax Exempt Status? Please enter Yes or No | C10: No
B14: Cell Key:
B15: Blank cells require input from Health plan or Health insurer
B18: Version 4.22.15
B19: Revised Version 5.26.15
B20: Revised Version 4.15.16 corrected dates for Cycle Year (CY)2015-2016 on TABs Parts 1, 2 and 4.
B21: Revised Version 5.10.17 12/31 and 3/31 Columns years to be auto populated on TABs Parts 1 and 2.
B22: Revised Version 5.20.19 Document Accessible

Sheet Pt 1 Summary of Data
B1: Department of Managed Health Care/Department of Insurance
B2: Medical Loss Ratio Reporting Form: Dental Coverage
B3: Part 1 - Summary of Data
B5: Health Plan ID | H5: Federal Tax Exempt
D6: ='Cover Page'!C7 -> 0 | H6: ='Cover Page'!C10 -> No
B7: Legal Name
D8: ='Cover Page'!C8 -> Dearborn Life Insurance Company
B9: dBA | E9: Part 1
D10: ='Cover Page'!C9 -> 0
B11: MLR Reporting Year
D12: ='Cover Page'!C6 -> 2024
G14: Health Insurance Coverage | M14: Health Insurance Coverage
G15: DHMO Products | M15: DPPO & Indemnity Products
E16: Individual | G16: Small Group | I16: Large Group | K16: Individual | M16: Small Group | O16: Large Group
E17: Total as of | F17: Total as of | G17: Total as of | H17: Total as of | I17: Total as of | J17: Total as of | K17: Total as of | L17: Total as of | M17: Total as of | N17: Total as of | O17: Total as of | P17: Total as of
D18: Part 1 NOTE: REFER TO MLR INSTRUCTIONS FOR IMPORTANT | E18: ="12/31/"&""&'Cover Page'!C$6 -> 12/31/2024 | F18: =DATE(YEAR(E18)+0,MONTH(E18)+3,DAY(E18)+0) -> 2025-03-31 | G18: ="12/31/"&""&'Cover Page'!C$6 -> 12/31/2024 | H18: =DATE(YEAR(G18)+0,MONTH(G18)+3,DAY(G18)+0) -> 2025-03-31 | I18: ="12/31/"&""&'Cover Page'!C$6 -> 12/31/2024 | J18: =DATE(YEAR(I18)+0,MONTH(I18)+3,DAY(I18)+0) -> 2025-03-31 | K18: ="12/31/"&""&'Cover Page'!C$6 -> 12/31/2024 | L18: =DATE(YEAR(K18)+0,MONTH(K18)+3,DAY(K18)+0) -> 2025-03-31 | M18: ="12/31/"&""&'Cover Page'!C$6 -> 12/31/2024 | N18: =DATE(YEAR(M18)+0,MONTH(M18)+3,DAY(M18)+0) -> 2025-03-31 | O18: ="12/31/"&""&'Cover Page'!C$6 -> 12/31/2024 | P18: =DATE(YEAR(O18)+0,MONTH(O18)+3,DAY(O18)+0) -> 2025-03-31
D19: INFORMATION ABOUT COMPLETING EACH COLUMN AND ROW. | E19: 1 | F19: 2 | G19: 3 | H19: 4 | I19: 5 | J19: 6 | K19: 7 | L19: 8 | M19: 9 | N19: 10 | O19: 11 | P19: 12
B20: 1. | C20: Premium
C21: 1.1 | D21: Total direct premium earned | E21: ='Pt 2 Premium and Claims'!E22+'Pt 2 Premium and Claims'!E23-'Pt 2 Premium and Claims'!E24-'Pt 2 Premium and Claims'!E25 -> 0 | F21: ='Pt 2 Premium and Claims'!F22+'Pt 2 Premium and Claims'!F23-'Pt 2 Premium and Claims'!F24-'Pt 2 Premium and Claims'!F25 -> 0 | G21: ='Pt 2 Premium and Claims'!G22+'Pt 2 Premium and Claims'!G23-'Pt 2 Premium and Claims'!G24-'Pt 2 Premium and Claims'!G25 -> 0 | H21: ='Pt 2 Premium and Claims'!H22+'Pt 2 Premium and Claims'!H23-'Pt 2 Premium and Claims'!H24-'Pt 2 Premium and Claims'!H25 -> 0 | I21: ='Pt 2 Premium and Claims'!I22+'Pt 2 Premium and Claims'!I23-'Pt 2 Premium and Claims'!I24-'Pt 2 Premium and Claims'!I25 -> 0 | J21: ='Pt 2 Premium and Claims'!J22+'Pt 2 Premium and Claims'!J23-'Pt 2 Premium and Claims'!J24-'Pt 2 Premium and Claims'!J25 -> 0 | K21: ='Pt 2 Premium and Claims'!K22+'Pt 2 Premium and Claims'!K23-'Pt 2 Premium and Claims'!K24-'Pt 2 Premium and Claims'!K25 -> 0 | L21: ='Pt 2 Premium and Claims'!L22+'Pt 2 Premium and Claims'!L23-'Pt 2 Premium and Claims'!L24-'Pt 2 Premium and Claims'!L25 -> 0 | M21: ='Pt 2 Premium and Claims'!M22+'Pt 2 Premium and Claims'!M23-'Pt 2 Premium and Claims'!M24-'Pt 2 Premium and Claims'!M25 -> 69331 | N21: ='Pt 2 Premium and Claims'!N22+'Pt 2 Premium and Claims'!N23-'Pt 2 Premium and Claims'!N24-'Pt 2 Premium and Claims'!N25 -> 69292 | O21: ='Pt 2 Premium and Claims'!O22+'Pt 2 Premium and Claims'!O23-'Pt 2 Premium and Claims'!O24-'Pt 2 Premium and Claims'!O25 -> 0 | P21: ='Pt 2 Premium and Claims'!P22+'Pt 2 Premium and Claims'!P23-'Pt 2 Premium and Claims'!P24-'Pt 2 Premium and Claims'!P25 -> 0
B23: 2. | C23: Claims
C24: 2.1 | D24: Total incurred claims (MLR Form Part 2, Line 2.11) | E24: ='Pt 2 Premium and Claims'!E51 -> 0 | F24: ='Pt 2 Premium and Claims'!F51 -> 0 | G24: ='Pt 2 Premium and Claims'!G51 -> 0 | H24: ='Pt 2 Premium and Claims'!H51 -> 0 | I24: ='Pt 2 Premium and Claims'!I51 -> 0 | J24: ='Pt 2 Premium and Claims'!J51 -> 0 | K24: ='Pt 2 Premium and Claims'!K51 -> 0 | L24: ='Pt 2 Premium and Claims'!L51 -> 0 | M24: ='Pt 2 Premium and Claims'!M51 -> 49143 | N24: ='Pt 2 Premium and Claims'!N51 -> 43739 | O24: ='Pt 2 Premium and Claims'!O51 -> 0 | P24: ='Pt 2 Premium and Claims'!P51 -> 0
B26: 3. | C26: Federal and State Taxes and Licensing or Regulatory Fees
C27: 3.1 | D27: Federal taxes and assessments incurred by the reporting health plan or health insurer during the MLR reporting year
D28: 3.1 a Federal income taxes deductible from premium in MLR calculations
D29: 3.1 b Other Federal Taxes (other than income tax) and assessments deductible from premium
C30: 3.2 | D30: State insurance, premium and other taxes incurred by the reporting health plan or heath insurer during the MLR reporting year (deductible from premium in MLR calculation)
D31: 3.2 a State income, excise, business, and other taxes
D32: 3.2 b State premium taxes | M32: ='Dec 2024'!AU44 -> 1616.706 | N32: ='Dec 2024'!AX44 -> 1604.7915
D33: 3.2 c Community benefit expenditures
C34: 3.3 | D34: Regulatory authority licenses and fees
C35: 3.4 | D35: Total Federal and State Taxes and fees to be excluded from premium | E35: =SUM(E$28:E$29,E$31,E$34+IF($H$6="No",IF(MAX(E$32:E$33)=0,MIN(E$32:E$33),MAX(E$32:E$33)),SUM(E$32:E$33))) -> 0 | F35: 0 | G35: 0 | H35: 0 | I35: 0 | J35: 0 | K35: 0 | L35: 0 | M35: 1616.706 | N35: 1604.7915 | O35: 0 | P35: 0
B37: 4. | C37: Non-Claims Costs
C38: 4.1 | D38: Direct sales salaries and benefits
C39: 4.2 | D39: Agents and brokers fees and commissions | M39: ='Dec 2024'!AU42 -> 7781.234315 | N39: ='Dec 2024'!AX42 -> 7650.057086
C40: 4.3 | D40: Other taxes
D41: 4.3a Taxes and assessments (exclude amounts reported in Section 3 or Line 10)
D42: 4.3b Fines and penalties of regulatory authorities (exclude amounts reported in Line 3.3)
C43: 4.4 | D43: Other general and administrative expenses | M43: ='Dec 2024'!AU43 -> 28139.09044 | N43: ='Dec 2024'!AX43 -> 30195.20569
C44: 4.5 | D44: Total non-claims costs | E44: =SUM(SUM(E38:E39)+SUM(E41:E43)) -> 0 | F44: =SUM(SUM(F38:F39)+SUM(F41:F43)) -> 0 | G44: 0 | H44: 0 | I44: 0 | J44: 0 | K44: 0 | L44: 0 | M44: 35920.32476 | N44: 37845.26278 | O44: 0 | P44: 0
B46: 5. | C46: Other Indicators or information
C47: 5.1 | D47: Number of covered lives | M47: 115 | N47: 115
C48: 5.2 | D48: Member months | M48: 1377 | N48: 1376
C49: 5.3 | D49: Number of life-years | E49: =E48/12 -> 0 | F49: =F48/12 -> 0 | G49: 0 | H49: =H48/12 -> 0 | I49: 0 | J49: 0 | K49: 0 | L49: 0 | M49: =M48/12 -> 114.75 | N49: =N48/12 -> 114.6666667 | O49: 0 | P49: 0
E50: ="Grand Total as of "&""&TEXT(E$18,"MM/DD/YYYY")&" for ALL markets in col. 1-12." -> Grand Total as of 12/31/2024 for ALL markets in col. 1-12.
B51: 6. | C51: Net investment income and other gain / (loss)
B52: 7. | C52: Other Federal income taxes (exclude taxes on Line 3.1a and 3.1b)
B54: Cell Keys:
C55: Blank cells require input from Health plan or Health insurer
C56: Grey cells require no data input
C57: Pink cells require no data input - locked down
C58: Blue cells: computed cell (formula cell)

Sheet Pt 2 Premium and Claims
B1: Department of Managed Health Care/Department of Insurance
B2: Medical Loss Ratio Reporting Form: Dental Coverage
B3: Part 2 - Premium and Claims
B5: Health Plan ID
D6: ='Cover Page'!C7 -> 0
B7: Legal Name
D8: ='Cover Page'!C8 -> Dearborn Life Insurance Company
B9: dBA | E9: Part 2
D10: ='Cover Page'!C9 -> 0
B11: MLR Reporting Year
D12: ='Cover Page'!C6 -> 2024
G15: Health Insurance Coverage | M15: Health Insurance Coverage
G16: DHMO Products | M16: DPPO & Indemnity Products
E17: Individual | H17: Small Group | I17: Large Group | K17: Individual | M17: Small Group | O17: Large Group
E18: Total as of | F18: Total as of | G18: Total as of | H18: Total as of | I18: Total as of | J18: Total as of | K18: Total as of | L18: Total as of | M18: Total as of | N18: Total as of | O18: Total as of | P18: Total as of
D19: Part 2 NOTE: REFER TO MLR INSTRUCTIONS FOR IMPORTANT | E19: ="12/31/"&""&'Cover Page'!C$6 -> 12/31/2024 | F19: =DATE(YEAR(E19)+0,MONTH(E19)+3,DAY(E19)+0) -> 2025-03-31 | G19: ="12/31/"&""&'Cover Page'!C$6 -> 12/31/2024 | H19: =DATE(YEAR(G19)+0,MONTH(G19)+3,DAY(G19)+0) -> 2025-03-31 | I19: ="12/31/"&""&'Cover Page'!C$6 -> 12/31/2024 | J19: =DATE(YEAR(I19)+0,MONTH(I19)+3,DAY(I19)+0) -> 2025-03-31 | K19: ="12/31/"&""&'Cover Page'!C$6 -> 12/31/2024 | L19: =DATE(YEAR(K19)+0,MONTH(K19)+3,DAY(K19)+0) -> 2025-03-31 | M19: ="12/31/"&""&'Cover Page'!C$6 -> 12/31/2024 | N19: =DATE(YEAR(M19)+0,MONTH(M19)+3,DAY(M19)+0) -> 2025-03-31 | O19: ="12/31/"&""&'Cover Page'!C$6 -> 12/31/2024 | P19: =DATE(YEAR(O19)+0,MONTH(O19)+3,DAY(O19)+0) -> 2025-03-31
D20: INFORMATION ABOUT COMPLETING EACH COLUMN AND ROW. | E20: 1 | F20: 2 | G20: 3 | H20: 4 | I20: 5 | J20: 6 | K20: 7 | L20: 8 | M20: 9 | N20: 10 | O20: 11 | P20: 12
B21: 1. | C21: Premium:
C22: 1.1 | D22: Direct premium written | M22: 69331 | N22: 69292
C23: 1.2 | D23: Unearned premium prior year
C24: 1.3 | D24: Unearned premium MLR Reporting year
C25: 1.4 | D25: Premium balances written off
B27: 2. | C27: Claims:
C28: 2.1 | D28: Claims Paid
D29: 2.1a Claims paid during the MLR reporting year regardless of incurred date | M29: 46234
D30: 2.1b Claims incurred only during the MLR reporting year, paid through 3/31 of the following year | N30: 43225
C31: 2.2 | D31: Direct claim liability
D32: 2.2a Liability as of 12/31 of MLR reporting year for all claims regardless of incurred date
D33: 2.2b Liability for claims incurred only during the MLR reporting year, calculated as of 3/31 of the following year
C34: 2.3 | D34: Direct claim liability prior year
C35: 2.4 | D35: Direct claim reserves
D36: 2.4a Reserves as of 12/31 of MLR reporting year for all claims regardless of incurred date | M36: 2909
D37: 2.4b Reserves for claims incurred only during the MLR reporting year, calculated as of 3/31 of the following year | N37: 514
C38: 2.5 | D38: Direct claim reserves prior year
C39: 2.6 | D39: Experience rating refunds (rate credits) paid
D40: 2.6a Experience rating refunds, with all incurred dates, paid in the MLR reporting year
D41: 2.6b Experience rating refunds associated with premium earned only in the reporting year and paid through 3/31 of the following year
C42: 2.7 | D42: Reserve for experience rating refunds (rate credits)
D43: 2.7a Reserved in MLR reporting year regardless of incurred date
D44: 2.7b Reserves specific to the MLR reporting year through 3/31 of the following year
C45: 2.8 | D45: Reserve for experience rating refunds (rate credits) prior year
C46: 2.9 | D46: Incurred dental incentive pool and bonuses
D47: 2.9a Paid dental incentive pools and bonuses MLR Reporting year
D48: 2.9b Accrued dental incentive pools and bonuses MLR Reporting year
D49: 2.9c Accrued dental incentive pools and bonuses prior year
C50: 2.10 | D50: Contingent benefit and lawsuit reserves
C51: 2.11 | D51: Total incurred claims | E51: =E29+E32-E34+E36-E38+E40+E43-E45+E47+E48-E49+E50 -> 0 | F51: =F30+F33+F37+F41+F44+F47+F48+F50 -> 0 | G51: =G29+G32-G34+G36-G38+G40+G43-G45+G47+G48-G49+G50 -> 0 | H51: =H30+H33+H37+H41+H44+H47+H48+H50 -> 0 | I51: =I29+I32-I34+I36-I38+I40+I43-I45+I47+I48-I49+I50 -> 0 | J51: =J30+J33+J37+J41+J44+J47+J48+J50 -> 0 | K51: =K29+K32-K34+K36-K38+K40+K43-K45+K47+K48-K49+K50 -> 0 | L51: =L30+L33+L37+L41+L44+L47+L48+L50 -> 0 | M51: =M29+M32-M34+M36-M38+M40+M43-M45+M47+M48-M49+M50 -> 49143 | N51: =N30+N33+N37+N41+N44+N47+N48+N50 -> 43739 | O51: =O29+O32-O34+O36-O38+O40+O43-O45+O47+O48-O49+O50 -> 0 | P51: =P30+P33+P37+P41+P44+P47+P48+P50 -> 0
C54: Cell Keys:
D55: Blank cells require input from Health plan or Health insurer
D56: Grey cells require no data input
D57: Pink cells require no data input - locked down
D58: Blue cells: computed cell (formula cell)

Sheet Pt 3 Expense Allocation
B1: Department of Managed Health Care/Department of Insurance
B2: Medical Loss Ratio Reporting Form: Dental Coverage
B3: Part 3 - Expense Allocation
B5: Health Plan ID
B6: ='Cover Page'!C7 -> 0 | D6: Part 3
B7: Legal Name
B8: ='Cover Page'!C8 -> Dearborn Life Insurance Company
B9: dBA
B10: ='Cover Page'!C9 -> 0
B11: MLR Reporting Year
B12: ='Cover Page'!C6 -> 2024
B15: Description of Expense Element (by Type) | C15: NEW | D15: Detailed Description of Expense Allocation Methods
B16: 1 | C16: 2 | D16: 3
B17: 1. Incurred Claims
D18: Actual - no allocation
B24: 2. Federal and State Taxes and Licensing or Regulatory Fees
B25: 2.a Federal taxes and assessments
D26: Corporate tax rate 21%
B32: 2.b State insurance, premium and other taxes
D33: Actual premium tax allocated based on direct dental premium collected
B39: 2.c Community benefit expenditures
D40: None
B46: 2.d Regulatory authority licenses and fees
D47: None
B53: 3. Non-Claims costs
B54: 3.a Direct sales salaries and benefits
D55: None
B61: 3.b Agents and brokers fees and commissions
D62: Actual expense allocated based on direct dental premium collected
B68: 3.c Other taxes
D69: No allocation
B75: 3.d Other general and administrative expenses
D76: Actual expense allocated based on direct dental premium collected
B83: Cell Keys:
B84: Blank cells require input from Health plan or Health insurer
B85: Grey cells require no data input
B86: Pink cells require no data input - locked down
B87: Blue cells: computed cell (formula cell)

Sheet Pt 4 MLR Calculation
B1: Department of Managed Health Care/Department of Insurance
B2: Medical Loss Ratio Reporting Form: Dental Coverage
B3: Part 4 - MLR Calculation
B5: Health Plan ID
D6: ='Cover Page'!C7 -> 0 | F6: Part 4
B7: Legal Name
D8: ='Cover Page'!C8 -> Dearborn Life Insurance Company
B9: dBA
D10: ='Cover Page'!C9 -> 0
B11: MLR Reporting Year
D12: ='Cover Page'!C6 -> 2024
J15: Health Insurance Coverage | V15: Health Insurance Coverage
J16: DHMO Products | V16: DPPO & Indemnity Products
F17: Individual | J17: Small Group | N17: Large Group | R17: Individual | V17: Small Group | Z17: Large Group
D18: Part 4 NOTE: REFER TO MLR INSTRUCTIONS FOR IMPORTANT | E18: PY2 | F18: PY1 | G18: CY | H18: Total | I18: PY2 | J18: PY1 | K18: CY | L18: Total | M18: PY2 | N18: PY1 | O18: CY | P18: Total | Q18: PY2 | R18: PY1 | S18: CY | T18: Total | U18: PY2 | V18: PY1 | W18: CY | X18: Total | Y18: PY2 | Z18: PY1 | AA18: CY | AB18: Total
D19: INFORMATION ABOUT COMPLETING EACH COLUMN AND ROW. | E19: 1 | F19: 2 | G19: 3 | H19: 4 | I19: 5 | J19: 6 | K19: 7 | L19: 8 | M19: 9 | N19: 10 | O19: 11 | P19: 12 | Q19: 13 | R19: 14 | S19: 15 | T19: 16 | U19: 17 | V19: 18 | W19: 19 | X19: 20 | Y19: 21 | Z19: 22 | AA19: 23 | AB19: 24
B20: 1. | C20: Medical Loss Ratio Numerator
C21: 1.1 | D21: Adjusted incurred claims as reported on MLR Form for prior year(s) | U21: 123125.44 | V21: 47055.3533
C22: 1.2 | D22: Adjusted incurred claims as of 3/31 of the year following the MLR reporting year (Part 1 Line 2.1) | G22: ='Pt 1 Summary of Data'!F24 -> 0 | H22: =SUM(E22:G22) -> 0 | K22: ='Pt 1 Summary of Data'!H24 -> 0 | L22: =SUM(I22:K22) -> 0 | O22: ='Pt 1 Summary of Data'!J24 -> 0 | P22: =SUM(M22:O22) -> 0 | S22: ='Pt 1 Summary of Data'!L24 -> 0 | T22: =SUM(Q22:S22) -> 0 | U22: 123125.44 | V22: 47055.3533 | W22: ='Pt 1 Summary of Data'!N24 -> 43739 | X22: =SUM(U22:W22) -> 213919.7933 | AA22: ='Pt 1 Summary of Data'!P24 -> 0 | AB22: =SUM(Y22:AA22) -> 0
C23: 1.3 | D23: MLR numerator (Line 1.2) | E23: =SUM(E$22) -> 0 | F23: =SUM(F$22) -> 0 | G23: =SUM(G$22:G$22) -> 0 | H23: =SUM(E23:G23) -> 0 | I23: =SUM(I$22:I$22) -> 0 | J23: =SUM(J$22:J$22) -> 0 | K23: =SUM(K$22:K$22) -> 0 | L23: =SUM(I23:K23) -> 0 | M23: =SUM(M$22:M$22) -> 0 | N23: =SUM(N$22:N$22) -> 0 | O23: =SUM(O$22:O$22) -> 0 | P23: =SUM(M23:O23) -> 0 | Q23: =SUM(Q$22:Q$22) -> 0 | R23: =SUM(R$22:R$22) -> 0 | S23: =SUM(S$22:S$22) -> 0 | T23: =SUM(Q23:S23) -> 0 | U23: =SUM(U$22:U$22) -> 123125.44 | V23: =SUM(V$22:V$22) -> 47055.3533 | W23: =SUM(W$22:W$22) -> 43739 | X23: =SUM(U23:W23) -> 213919.7933 | Y23: =SUM(Y$22:Y$22) -> 0 | Z23: =SUM(Z$22:Z$22) -> 0 | AA23: =SUM(AA$22:AA$22) -> 0 | AB23: =SUM(Y23:AA23) -> 0
B25: 2. | C25: Medical Loss Ratio Denominator
C26: 2.1 | D26: Premium earned (Part 1 Line 1.1) | G26: ='Pt 1 Summary of Data'!F21 -> 0 | H26: =SUM(E26:G26) -> 0 | K26: ='Pt 1 Summary of Data'!H21 -> 0 | L26: =SUM(I26:K26) -> 0 | O26: ='Pt 1 Summary of Data'!J21 -> 0 | P26: =SUM(M26:O26) -> 0 | S26: ='Pt 1 Summary of Data'!L21 -> 0 | T26: =SUM(Q26:S26) -> 0 | U26: 201390.462 | V26: 70906.99 | W26: ='Pt 1 Summary of Data'!N21 -> 69292 | X26: =SUM(U26:W26) -> 341589.452 | AA26: ='Pt 1 Summary of Data'!P21 -> 0 | AB26: =SUM(Y26:AA26) -> 0
C27: 2.2 | D27: Federal and State taxes and licensing or regulatory fees ( Part 1 Line 3.4) | G27: ='Pt 1 Summary of Data'!F35 -> 0 | H27: =SUM(E27:G27) -> 0 | K27: ='Pt 1 Summary of Data'!H35 -> 0 | L27: =SUM(I27:K27) -> 0 | O27: ='Pt 1 Summary of Data'!J35 -> 0 | P27: =SUM(M27:O27) -> 0 | S27: ='Pt 1 Summary of Data'!L35 -> 0 | T27: =SUM(Q27:S27) -> 0 | U27: 10502 | V27: 1659 | W27: ='Pt 1 Summary of Data'!N35 -> 1604.7915 | X27: =SUM(U27:W27) -> 13765.7915 | AA27: ='Pt 1 Summary of Data'!P35 -> 0 | AB27: =SUM(Y27:AA27) -> 0
C28: 2.3 | D28: MLR Denominator (Line 2.1 - Line 2.2) | E28: =E$26-E$27 -> 0 | F28: 0 | G28: 0 | H28: =H$26-H$27 -> 0 | I28: =I$26-I$27 -> 0 | J28: =J$26-J$27 -> 0 | K28: 0 | L28: =L$26-L$27 -> 0 | M28: 0 | N28: 0 | O28: 0 | P28: =P$26-P$27 -> 0 | Q28: 0 | R28: 0 | S28: 0 | T28: =T$26-T$27 -> 0 | U28: 190888.462 | V28: 69247.99 | W28: 67687.2085 | X28: =X$26-X$27 -> 327823.6605 | Y28: 0 | Z28: 0 | AA28: 0 | AB28: =AB$26-AB$27 -> 0
B30: 3. | C30: 3.1 | D30: Life-years (Part 1 Line 5.3) | G30: ='Pt 1 Summary of Data'!F49 -> 0 | H30: =SUM(E30:G30) -> 0 | K30: ='Pt 1 Summary of Data'!H49 -> 0 | L30: =SUM(I30:K30) -> 0 | O30: ='Pt 1 Summary of Data'!J49 -> 0 | P30: =SUM(M30:O30) -> 0 | S30: ='Pt 1 Summary of Data'!L49 -> 0 | T30: =SUM(Q30:S30) -> 0 | U30: 325 | V30: 118.6666667 | W30: ='Pt 1 Summary of Data'!N49 -> 114.6666667 | X30: =SUM(U30:W30) -> 558.3333333 | AA30: ='Pt 1 Summary of Data'!P49 -> 0 | AB30: =SUM(Y30:AA30) -> 0
B32: 4. | D32: MLR Calculation (for Health plans or health insurers with at least 1,000 life years in the Total column of Line 3.1)
C33: 4.1 | D33: MLR | H33: =IF(H30<1000,"Not Required to Calculate",H23/H28) -> Not Required to Calculate | L33: =IF(L30<1000,"Not Required to Calculate",L23/L28) -> Not Required to Calculate | P33: =IF(P30<1000,"Not Required to Calculate",P23/P28) -> Not Required to Calculate | T33: =IF(T30<1000,"Not Required to Calculate",T23/T28) -> Not Required to Calculate | X33: =IF(X30<1000,"Not Required to Calculate",X23/X28) -> Not Required to Calculate | AB33: =IF(AB30<1000,"Not Required to Calculate",AB23/AB28) -> Not Required to Calculate
C37: Cell Keys:
D38: Blank cells require input from Health plan or Health insurer
D39: Grey cells require no data input
D40: Pink cells require no data input - locked down
D41: Blue cells: computed cell (formula cell)

Sheet Pt 5 Additional Responses
B1: Department of Managed Health Care/Department of Insurance
B2: Medical Loss Ratio Reporting Form: Dental Coverage
B3: Part 5 - Additional Responses
B5: Health Plan ID
B6: ='Cover Page'!C7 -> 0
B7: Legal Name | C7: Part 5
B8: ='Cover Page'!C8 -> Dearborn Life Insurance Company
B9: dBA
B10: ='Cover Page'!C9 -> 0
B11: MLR Reporting Year
B12: ='Cover Page'!C6 -> 2024
C16: Tax Rate
B17: 1. If a health plan or health insurer uses the hightest premium tax rate in the State, the health plan or health insurer must report applicabe highest State health premium tax rate.
B18: 2. If the health plan or health insurer included deferred experience for prior year and excluded deferred experience for current year, provide the total direct written premium and total incurred claims for the deferred experience by market.
B19: Deferred experience for prior year
B20: Deferred experience for current year
B32: 3. If the health plan or health insurer novated any business in the MLR reporting year effective during the reporting year provide the name of the entity to whom the business was sold or transferred and the date of the sale or transfer.
B33: Name of Entity to whom business was sold or transferred | C33: Effective date of sale or transfer
B45: Cell Keys:
B46: Blank cells require input from Health plan or Health insurer
B47: Grey cells require no data input
B48: Pink cells require no data input - locked down
B49: Blue cells: computed cell (formula cell)

Sheet Attestation
B1: Department of Managed Health Care
B2: Medical Loss Ratio Reporting Form: Dental Coverage
B3: Attestation
B5: Health Plan ID
B6: ='Cover Page'!C7 -> 0
B7: Legal Name
B8: ='Cover Page'!C8 -> Dearborn Life Insurance Company | D8: Attestation
B9: dBA
B10: ='Cover Page'!C9 -> 0
B11: MLR Reporting Year
B12: ='Cover Page'!C6 -> 2024
B17: Attestation Statement
B18: The officers of this reporting Health plan being duly sworn, each attest that he/she is the described officer of the reporting Health plan, and that this MLR Reporting Form, the Company/Health plan Associations, and any supplemental submission that the Health plan includes are full and true statements of all the elements included therein for the MLR reporting year stated above, and that the MLR Reporting Form has been completed in accordance with the Department of Managed Health Care’s guidance and reporting instructions, according to the best of his/her information, knowledge and belief. Furthermore, the scope of this attestation by the described officer includes any related electronic filings and postings for the MLR reporting year stated above and which are required by Department of Managed Health Care.
B23: Chief Executive Officer/President
B25: David R. Warden
B27: Chief Financial Officer
B29: Claire C. Burke

Sheet Dec 2024
A1: DEARBORN LIFE INSURANCE COMPANY
A2: DECEMBER 2024
A3: INCOME STATEMENT BY LINE OF BUSINESS
A4: $'(000)'s
D5: Insured | AK5: Annuities | AN5: C&S | AO5: C&S | AQ5: Total All Lines | AR5: Total All Lines
D6: Life | F6: ADD | H6: STD | J6: LTD | L6: Dental | N6: Critical Illness | P6: Accident | R6: Hospital Indemnity | T6: Vision | V6: Individual Life | X6: ASO STD | Z6: ASO LIFE | AB6: ASO VIS | AD6: LTD ASO | AF6: DENTAL ASO | AH6: TOTAL INSURED | AK6: Annuities | AL6: Annuities | AQ6: of Business | AR6: of Business
D7: Actual | E7: Plan | F7: Actual | G7: Plan | H7: Actual | I7: Plan | J7: Actual | K7: Plan | L7: Actual | M7: Plan | N7: Actual | O7: Plan | P7: Actual | Q7: Plan | R7: Actual | S7: Plan | T7: Actual | U7: Plan | V7: Actual | W7: Plan | X7: Actual | Y7: Plan | Z7: Actual | AA7: Plan | AB7: Actual | AC7: Plan | AD7: Actual | AE7: Plan | AF7: Actual | AG7: Plan | AH7: Actual | AI7: Plan | AK7: Actual | AL7: Plan | AN7: Actual | AO7: Plan | AQ7: Actual | AR7: Plan
A9: Revenues
A10: Premiums
B11: Insurance premiums | D11: =(-[36]Prem_Loss_Comm!E33/1000) -> 342783.0666 | E11: =[36]Plan!P91+[36]Plan!P104 -> 333242.2627 | F11: =-[36]Prem_Loss_Comm!V33/1000 -> 31682.28784 | G11: =[36]Plan!P92+[36]Plan!P105 -> 28138.78744 | H11: =-[36]Prem_Loss_Comm!F33/1000 -> 121256.5688 | I11: =[36]Plan!P93+[36]Plan!P106 -> 117787.7669 | J11: =-[36]Prem_Loss_Comm!G33/1000 -> 120335.2306 | K11: =[36]Plan!P94+[36]Plan!P107 -> 116624.1667 | L11: =-[36]Prem_Loss_Comm!H33/1000 -> 750.7212 | M11: =[36]Plan!P95+[36]Plan!P109 -> 829.6379264 | N11: =-[36]Prem_Loss_Comm!R33/1000 -> 11349.27404 | O11: =[36]Plan!P96+[36]Plan!P110 -> 11214.95816 | P11: =-[36]Prem_Loss_Comm!T33/1000 -> 9293.75459 | Q11: =[36]Plan!P97+[36]Plan!P114 -> 9899.353655 | R11: =-[36]Prem_Loss_Comm!U33/1000 -> 1721.42912 | S11: =+[36]Plan!P98 -> 1667.007422 | T11: =-[36]Prem_Loss_Comm!S33/1000 -> 70104.84795 | U11: =[36]Plan!P99+[36]Plan!P108 -> 66626.99764 | V11: =-[36]Prem_Loss_Comm!Q33/1000 -> 5780.89959 | W11: =[36]Plan!P117 -> 6629.423 | X11: 0 | Y11: 0 | Z11: 0 | AA11: 0 | AB11: =-[36]Prem_Loss_Comm!N33/1000 -> 0 | AC11: 0 | AD11: 0 | AE11: 0 | AF11: =+[36]Prem_Loss_Comm!K33 -> 0 | AG11: 0 | AH11: =+D11+H11+J11+L11+X11+Z11+AB11+AF11+AD11+N11+P11+T11+V11+F11+R11 -> 715058.0803 | AI11: =+E11+I11+K11+M11+Y11+AA11+AC11+AG11+AE11+O11+Q11+U11+W11+G11+S11 -> 692660.3615 | AK11: 0 | AL11: 0 | AN11: 0 | AO11: 0 | AQ11: =AH11+AN11+AK11 -> 715058.0803 | AR11: =AI11+AO11+AL11 -> 692660.3615
B12: ASO claims and fees | D12: =(-[36]Prem_Loss_Comm!E38/1000) -> 0 | F12: =-[36]Prem_Loss_Comm!G38/1000 -> 0 | G12: 0 | H12: =+[36]Prem_Loss_Comm!F38 -> 0 | I12: 0 | J12: =+[36]Prem_Loss_Comm!G38 -> 0 | K12: 0 | L12: =+[36]Prem_Loss_Comm!H38 -> 0 | M12: 0 | N12: =+[36]Prem_Loss_Comm!R38 -> 0 | O12: 0 | P12: =+[36]Prem_Loss_Comm!T38 -> 0 | Q12: 0 | R12: =+[36]Prem_Loss_Comm!U38 -> 0 | S12: 0 | T12: =+[36]Prem_Loss_Comm!S38 -> 0 | U12: 0 | V12: =+[36]Prem_Loss_Comm!Q38 -> 0 | W12: 0 | X12: =-(([36]Prem_Loss_Comm!L33+[36]Prem_Loss_Comm!L38)/1000+[36]Prem_Loss_Comm!F38/1000+[36]Prem_Loss_Comm!J38/1000) -> 8568.20891 | Y12: =[36]Plan!P100+[36]Plan!P111 -> 8967.46878 | Z12: =-(([36]Prem_Loss_Comm!M33+[36]Prem_Loss_Comm!M38)/1000+([36]Prem_Loss_Comm!E38/1000)) -> 539.54174 | AA12: =[36]Plan!R100+[36]Plan!R111 -> 0 | AB12: =-(+[36]Prem_Loss_Comm!N38)/1000 -> 0 | AC12: =[36]Plan!T100+[36]Plan!T111 -> 0 | AD12: 0 | AE12: =[36]Plan!P113 -> 0 | AF12: =+[36]Prem_Loss_Comm!K38 -> 0 | AG12: =[36]Plan!P101+[36]Plan!P112 -> 0 | AH12: =+D12+H12+J12+L12+X12+Z12+AB12+AF12+AD12+N12+P12+T12+V12+F12+R12 -> 9107.75065 | AI12: 8967.46878 | AK12: 0 | AL12: 0 | AN12: 0 | AO12: 0 | AQ12: =AH12+AN12+AK12 -> 9107.75065 | AR12: 8967.46878
B13: Annuity premiums | D13: 0 | E13: 0 | F13: 0 | G13: 0 | H13: 0 | I13: 0 | J13: 0 | K13: 0 | L13: 0 | M13: 0 | N13: 0 | O13: 0 | P13: 0 | Q13: 0 | R13: 0 | S13: 0 | T13: 0 | U13: 0 | W13: 0 | X13: 0 | Y13: 0 | Z13: 0 | AA13: 0 | AB13: 0 | AC13: 0 | AD13: 0 | AE13: 0 | AF13: 0 | AG13: 0 | AH13: 0 | AI13: 0 | AK13: =-[36]Prem_Loss_Comm!J33/1000 -> 0 | AL13: 0 | AN13: 0 | AO13: 0 | AQ13: 0 | AR13: 0
B14: Total premiums | D14: =SUM(D11:D13) -> 342783.0666 | E14: 333242.2627 | F14: 31682.28784 | G14: 28138.78744 | H14: 121256.5688 | I14: 117787.7669 | J14: 120335.2306 | K14: 116624.1667 | L14: 750.7212 | M14: 829.6379264 | N14: 11349.27404 | O14: =SUM(O11:O13) -> 11214.95816 | P14: =SUM(P11:P13) -> 9293.75459 | Q14: 9899.353655 | R14: 1721.42912 | S14: 1667.007422 | T14: 70104.84795 | U14: 66626.99764 | V14: =SUM(V11:V13) -> 5780.89959 | W14: =SUM(W11:W13) -> 6629.423 | X14: 8568.20891 | Y14: =SUM(Y11:Y13) -> 8967.46878 | Z14: =SUM(Z11:Z13) -> 539.54174 | AA14: =SUM(AA11:AA13) -> 0 | AB14: =SUM(AB11:AB13) -> 0 | AC14: =SUM(AC11:AC13) -> 0 | AD14: 0 | AE14: 0 | AF14: 0 | AG14: 0 | AH14: =SUM(AH11:AH13) -> 724165.831 | AI14: =SUM(AI11:AI13) -> 701627.8303 | AK14: =SUM(AK11:AK13) -> 0 | AL14: 0 | AN14: =SUM(AN11:AN13) -> 0 | AO14: 0 | AQ14: =SUM(AQ11:AQ13) -> 724165.831 | AR14: =SUM(AR11:AR13) -> 701627.8303
A16: Net investment income | D16: ='[36]DNLStat Insured Allocation'!E10+'[36]DNLStat Insured Allocation'!E16 -> 6731 | E16: ='[36]DL Insured LOB'!H75+'[36]DL Insured LOB'!S75-1 -> 6495.410811 | F16: 0 | G16: ='[36]DL Insured LOB'!J75+'[36]DL Insured LOB'!U75 -> 382.2881195 | H16: ='[36]DNLStat Insured Allocation'!E11+'[36]DNLStat Insured Allocation'!E17 -> 837 | I16: ='[36]DL Insured LOB'!M75+'[36]DL Insured LOB'!X75 -> 1019.225874 | J16: ='[36]DNLStat Insured Allocation'!E12+'[36]DNLStat Insured Allocation'!E18 -> 17469 | K16: ='[36]DL Insured LOB'!K75+'[36]DL Insured LOB'!V75 -> 15945.98122 | L16: ='[36]DNLStat Insured Allocation'!E13+'[36]DNLStat Insured Allocation'!E19 -> 2 | M16: ='[36]DL Insured LOB'!G75 -> 1.69776565 | N16: 0 | O16: ='[36]DL Insured LOB'!N75+'[36]DL Insured LOB'!Y75 -> 55.99080638 | P16: 0 | Q16: ='[36]DL Insured LOB'!O75+'[36]DL Insured LOB'!Z75 -> 19.91986867 | R16: 0 | S16: 0 | T16: 0 | U16: ='[36]DL Insured LOB'!P75+'[36]DL Insured LOB'!AA75 -> 80.41458092 | V16: ='[36]DNLStat Insured Allocation'!E21 -> 5360 | W16: ='[36]DL Insured LOB'!AD75 -> 3208.211647 | X16: 0 | Y16: 0 | Z16: 0 | AA16: 0 | AB16: 0 | AC16: 0 | AD16: 0 | AE16: 0 | AF16: 0 | AG16: 0 | AH16: =+D16+H16+J16+L16+X16+Z16+AB16+AF16+AD16+N16+P16+R16+T16+V16+F16 -> 30399 | AI16: =+E16+G16+I16+K16+M16+O16+Q16+S16+U16+W16+Y16+AA16+AC16+AE16+AG16 -> 27209.14069 | AK16: =+'[36]DNLStat Insured Allocation'!E22 -> 391 | AL16: ='[36]DL Insured LOB'!AE75 -> 288.1274257 | AN16: ='[36]DNL Stat LOB Actual'!F38 -> 17890 | AO16: ='[36]DL Investments Detail'!C95-10 -> 15464.77 | AQ16: =AH16+AN16+AK16 -> 48680 | AR16: =AI16+AO16+AL16 -> 42962.03811
A17: Realized capital gains (losses) on bond disposals | D17: =+'[36]DNLStat Insured Allocation'!F10+'[36]DNLStat Insured Allocation'!F16 -> -34 | E17: 0 | F17: ='[36]DNLStat Insured Allocation'!H10+'[36]DNLStat Insured Allocation'!H16 -> 0 | G17: 0 | H17: =+'[36]DNLStat Insured Allocation'!F11+'[36]DNLStat Insured Allocation'!F17 -> -5 | J17: =+'[36]DNLStat Insured Allocation'!F12+'[36]DNLStat Insured Allocation'!F18 -> -89 | K17: 0 | L17: ='[36]DNLStat Insured Allocation'!F13+'[36]DNLStat Insured Allocation'!F19 -> 0 | M17: 0 | N17: ='[36]DNLStat Insured Allocation'!H13+'[36]DNLStat Insured Allocation'!H19 -> 0 | O17: 0 | P17: 0 | Q17: 0 | R17: 0 | S17: 0 | T17: 0 | U17: 0 | V17: =+'[36]DNLStat Insured Allocation'!F21 -> -27 | W17: 0 | X17: 0 | Y17: 0 | Z17: 0 | AA17: 0 | AB17: 0 | AC17: 0 | AD17: 0 | AE17: 0 | AF17: 0 | AG17: 0 | AH17: =+D17+H17+J17+L17+X17+Z17+AB17+AF17+AD17+N17+P17+R17+T17+V17+F17 -> -155 | AI17: =+E17+G17+I17+K17+M17+O17+Q17+S17+U17+W17+Y17+AA17+AC17+AE17+AG17 -> 0 | AK17: =+'[36]DNLStat Insured Allocation'!F22 -> -2 | AL17: 0 | AN17: ='[36]DNL Stat LOB Actual'!F51 -> 0 | AO17: 0 | AQ17: =AH17+AN17+AK17 -> -157 | AR17: 0
A18: Realized capital gains (losses) on derivatives | D18: 0 | E18: 0 | F18: 0 | G18: 0 | H18: 0 | I18: 0 | J18: 0 | K18: 0 | L18: 0 | M18: 0 | N18: 0 | O18: 0 | P18: 0 | Q18: 0 | R18: 0 | S18: 0 | T18: 0 | U18: 0 | X18: 0 | Y18: 0 | Z18: 0 | AA18: 0 | AB18: 0 | AC18: 0 | AD18: 0 | AE18: 0 | AF18: 0 | AG18: 0 | AH18: 0 | AI18: 0 | AK18: 0 | AN18: 0 | AQ18: 0 | AR18: 0
A19: Realized capital losses - impairments | D19: ='[36]DNLStat Insured Allocation'!G10+'[36]DNLStat Insured Allocation'!G16-1 -> -54 | E19: ='[36]DL Insured LOB'!H72+'[36]DL Insured LOB'!S72 -> -143.9778832 | F19: ='[36]DNLStat Insured Allocation'!I10+'[36]DNLStat Insured Allocation'!I16 -> 0 | G19: ='[36]DL Insured LOB'!J72+'[36]DL Insured LOB'!U72 -> -8.223862901 | H19: ='[36]DNLStat Insured Allocation'!G17+'[36]DNLStat Insured Allocation'!G11 -> -6 | I19: ='[36]DL Insured LOB'!M72+'[36]DL Insured LOB'!X72 -> -21.92580262 | J19: ='[36]DNLStat Insured Allocation'!G12+'[36]DNLStat Insured Allocation'!G18 -> -137 | K19: ='[36]DL Insured LOB'!K72+'[36]DL Insured LOB'!V72 -> -347.2590408 | L19: 0 | M19: ='[36]DL Insured LOB'!G72 -> -0.03652269383 | N19: 0 | O19: ='[36]DL Insured LOB'!N72+'[36]DL Insured LOB'!Y72 -> -1.204486072 | P19: 0 | Q19: ='[36]DL Insured LOB'!O72+'[36]DL Insured LOB'!Z72 -> -0.4285204289 | R19: 0 | S19: 0 | T19: 0 | U19: ='[36]DL Insured LOB'!P72+'[36]DL Insured LOB'!AA72 -> -1.729895477 | V19: ='[36]DNLStat Insured Allocation'!G21 -> -42 | W19: ='[36]DL Insured LOB'!AD72 -> -69.01572767 | X19: 0 | Y19: 0 | Z19: 0 | AA19: 0 | AB19: 0 | AC19: 0 | AD19: 0 | AE19: 0 | AF19: 0 | AG19: 0 | AH19: =+D19+H19+J19+L19+X19+Z19+AB19+AF19+AD19+N19+P19+R19+T19+V19+F19 -> -239 | AI19: -593.8017419 | AK19: =+'[36]DNLStat Insured Allocation'!G22 -> -3 | AL19: ='[36]DL Insured LOB'!AE72 -> -6.198258138 | AN19: =+'[36]DNL Stat LOB Actual'!F64 -> 0 | AO19: ='[36]DL Investments Detail'!C92 -> -400 | AQ19: -242 | AR19: -1000
A21: Other income | AH21: 0 | AI21: 0
B22: Dental TPA fees | AH22: 0 | AI22: 0
B23: Dental network leasing fees | AH23: 0 | AI23: 0
B24: Other revenues | D24: =-'[36]Other Income'!C22/1000 -> -1.13989 | E24: =[36]Plan!D165 -> 220 | F24: 0 | G24: 0 | H24: =-'[36]Other Income'!D22/1000 -> 1284.05096 | I24: =[36]Plan!D166 -> 1200 | J24: =-'[36]Other Income'!E22/1000 -> 1.88823 | K24: 0 | L24: 0 | M24: 0 | N24: 0 | O24: 0 | P24: 0 | Q24: 0 | R24: 0 | S24: 0 | T24: 0 | U24: 0 | V24: 0 | W24: 0 | X24: 0 | Y24: 0 | Z24: 0 | AA24: 0 | AB24: 0 | AC24: 0 | AD24: 0 | AE24: 0 | AF24: 0 | AG24: 0 | AH24: 1284.7993 | AI24: 1420 | AK24: =-'[36]Other Income'!H22/1000 -> 3008.45326 | AL24: =[36]Plan!P161+[36]Plan!P162 -> 2639.53028 | AN24: 0 | AO24: 0 | AQ24: =AH24+AN24+AK24 -> 4293.25256 | AR24: =AI24+AO24+AL24 -> 4059.53028
B25: Total other income | D25: =SUM(D24:D24) -> -1.13989 | E25: 220 | F25: 0 | G25: 0 | H25: 1284.05096 | I25: 1200 | J25: 1.88823 | K25: 0 | L25: 0 | M25: 0 | N25: 0 | O25: 0 | P25: 0 | Q25: 0 | R25: =SUM(R24:R24) -> 0 | S25: 0 | T25: 0 | U25: 0 | V25: 0 | W25: 0 | X25: 0 | Y25: 0 | Z25: =SUM(Z24:Z24) -> 0 | AA25: 0 | AB25: 0 | AC25: 0 | AD25: 0 | AE25: 0 | AF25: 0 | AG25: 0 | AH25: 1284.7993 | AI25: 1420 | AK25: =SUM(AK24:AK24) -> 3008.45326 | AL25: =SUM(AL24:AL24) -> 2639.53028 | AN25: =SUM(AN24:AN24) -> 0 | AO25: =SUM(AO24:AO24) -> 0 | AQ25: =SUM(AQ24:AQ24) -> 4293.25256 | AR25: =SUM(AR24:AR24) -> 4059.53028
A27: Gross Revenues | D27: =+D25+D19+D18+D16+D14+D17 -> 349424.9267 | E27: 339813.6956 | F27: 31682.28784 | G27: 28512.8517 | H27: 123366.6197 | I27: 119985.0669 | J27: 137580.1189 | K27: 132222.8889 | L27: 752.7212 | M27: 831.2991694 | N27: 11349.27404 | O27: 11269.74448 | P27: 9293.75459 | Q27: 9918.845004 | R27: 1721.42912 | S27: 1667.007422 | T27: 70104.84795 | U27: 66705.68232 | V27: 11071.89959 | W27: 9768.61892 | X27: 8568.20891 | Y27: 8967.46878 | Z27: 539.54174 | AA27: 0 | AB27: 0 | AC27: 0 | AD27: 0 | AE27: 0 | AF27: 0 | AG27: 0 | AH27: 755455.6303 | AI27: =+AI25+AI19+AI18+AI16+AI14+AI17 -> 729663.1693 | AK27: =+AK25+AK19+AK18+AK16+AK14+AK17 -> 3394.45326 | AL27: =+AL25+AL19+AL18+AL16+AL14+AL17 -> 2921.459447 | AN27: =+AN25+AN19+AN18+AN16+AN14+AN17 -> 17890 | AO27: =+AO25+AO19+AO18+AO16+AO14+AO17 -> 15064.77 | AQ27: =+AQ25+AQ19+AQ18+AQ16+AQ14+AQ17 -> 776740.0836 | AR27: =+AR25+AR19+AR18+AR16+AR14+AR17 -> 747649.3987
A29: Less: ASO claims | D29: =-[36]Prem_Loss_Comm!E42/1000 -> 0 | E29: 0 | F29: 0 | G29: 0 | H29: 0 | I29: 0 | J29: 0 | K29: 0 | L29: 0 | M29: 0 | N29: 0 | O29: 0 | P29: 0 | Q29: 0 | R29: 0 | S29: 0 | T29: 0 | U29: 0 | V29: 0 | W29: 0 | X29: =(-[36]Prem_Loss_Comm!L67/1000) -> -5829.54524 | Y29: =-[36]Plan!P130-[36]Plan!P144 -> -6286.133221 | Z29: =(-[36]Prem_Loss_Comm!M67/1000) -> -50 | AA29: =-[36]Plan!R130-[36]Plan!R144 -> 0 | AB29: =(-[36]Prem_Loss_Comm!N67/1000) -> 0 | AC29: =-[36]Plan!T130-[36]Plan!T144 -> 0 | AD29: =-[36]Prem_Loss_Comm!O71/1000*0.666 -> 0 | AE29: 0 | AF29: =-[36]Prem_Loss_Comm!K67/1000 -> 0 | AG29: 0 | AH29: =+D29+H29+J29+L29+X29+Z29+AB29+AF29+AD29+N29+P29+R29+T29+V29+F29 -> -5879.54524 | AI29: =+E29+G29+I29+K29+M29+O29+Q29+S29+U29+W29+Y29+AA29+AC29+AE29+AG29 -> -6286.133221 | AK29: 0 | AL29: 0 | AN29: 0 | AO29: 0 | AQ29: =AH29+AN29+AK29 -> -5879.54524 | AR29: =AI29+AO29+AL29 -> -6286.133221
A31: Net Revenues | D31: =SUM(D27:D30) -> 349424.9267 | E31: =SUM(E27:E30) -> 339813.6956 | F31: =SUM(F27:F30) -> 31682.28784 | G31: =SUM(G27:G30) -> 28512.8517 | H31: 123366.6197 | I31: 119985.0669 | J31: 137580.1189 | K31: 132222.8889 | L31: 752.7212 | M31: 831.2991694 | N31: 11349.27404 | O31: 11269.74448 | P31: 9293.75459 | Q31: 9918.845004 | R31: 1721.42912 | S31: 1667.007422 | T31: 70104.84795 | U31: 66705.68232 | V31: 11071.89959 | W31: 9768.61892 | X31: 2738.66367 | Y31: 2681.335559 | Z31: 489.54174 | AA31: 0 | AB31: 0 | AC31: 0 | AD31: =SUM(AD27:AD30) -> 0 | AE31: 0 | AF31: 0 | AG31: 0 | AH31: 749576.085 | AI31: =SUM(AI27:AI30) -> 723377.036 | AK31: =SUM(AK27:AK30) -> 3394.45326 | AL31: 2921.459447 | AN31: =SUM(AN27:AN30) -> 17890 | AO31: =SUM(AO27:AO30) -> 15064.77 | AQ31: =SUM(AQ27:AQ30) -> 770860.5383 | AR31: =SUM(AR27:AR30) -> 741363.2655
AU32: California Dental
A33: Incurred Benefits | AU33: FY 2024 | AV33: 3/31/24 YTD | AW33: 3/31/25 YTD | AX33: 3/31/24-3/31/25
B34: Insurance claims and reserves | D34: =(+[36]Prem_Loss_Comm!E67/1000)-([36]Prem_Loss_Comm!E42/1000)+1 -> 245254.4421 | E34: =[36]Plan!P122+[36]Plan!P136 -> 252806.7779 | F34: =[36]Prem_Loss_Comm!V67/1000 -> 7932.23542 | G34: =[36]Plan!P123+[36]Plan!P137 -> 12663.384 | H34: =[36]Prem_Loss_Comm!F67/1000 -> 68992.76879 | I34: =[36]Plan!P124+[36]Plan!P138 -> 71164.995 | J34: =[36]Prem_Loss_Comm!G67/1000 -> 88280.10422 | K34: =[36]Plan!P125+[36]Plan!P139 -> 86065.50671 | L34: =[36]Prem_Loss_Comm!H67/1000 -> 441.64711 | M34: =[36]Plan!P126+[36]Plan!P140 -> 541.5945243 | N34: =[36]Prem_Loss_Comm!R67/1000 -> 2479.25871 | O34: =[36]Plan!P127+[36]Plan!P141 -> 3364.78408 | P34: =[36]Prem_Loss_Comm!T67/1000 -> 1154.89966 | Q34: =[36]Plan!P128+[36]Plan!P142 -> 2970.052446 | R34: =+[36]Prem_Loss_Comm!U67/1000 -> 909.85147 | S34: =+[36]Plan!P129+[36]Plan!P143 -> 834.0223249 | T34: =[36]Prem_Loss_Comm!S67/1000 -> 40685.32135 | U34: =[36]Plan!P133+[36]Plan!P148 -> 38722.893 | V34: =[36]Prem_Loss_Comm!Q67/1000 -> 7741.66997 | W34: =[36]Plan!P152 -> 6370.876 | X34: 0 | Y34: 0 | Z34: 0 | AA34: 0 | AB34: 0 | AC34: 0 | AD34: 0 | AE34: 0 | AF34: 0 | AG34: 0 | AH34: =+D34+H34+J34+L34+X34+Z34+AB34+AF34+AD34+N34+P34+R34+T34+V34+F34 -> 463872.1988 | AI34: =+E34+G34+I34+K34+M34+O34+Q34+S34+U34+W34+Y34+AA34+AC34+AE34+AG34 -> 475504.886 | AK34: 0 | AL34: 0 | AN34: 0 | AO34: 0 | AQ34: =AH34+AN34+AK344 -> 463872.1988 | AR34: =AI34+AO34+AL34 -> 475504.886 | AT34: Comm Exp | AU34: =L39*1000 -> 83952.75 | AV34: ='March 2024'!L39*1000 -> 23792.2 | AW34: ='March 2025'!L39*1000 -> 17649.59 | AX34: =AU34-AV34+AW34 -> 77810.14 | AY34: linked
B35: Annuity claims and reserves | D35: 0 | E35: 0 | F35: 0 | G35: 0 | H35: 0 | I35: 0 | J35: 0 | K35: 0 | L35: 0 | M35: 0 | N35: 0 | O35: 0 | W35: 0 | X35: 0 | Y35: 0 | Z35: 0 | AA35: 0 | AB35: 0 | AC35: 0 | AD35: 0 | AE35: 0 | AF35: 0 | AG35: 0 | AH35: 0 | AI35: 0 | AK35: =[36]Prem_Loss_Comm!J67/1000 -> 358.32587 | AL35: =+[36]Plan!P158 -> 256.5857006 | AN35: 0 | AO35: 0 | AQ35: =AH35+AN35+AK35 -> 358.32587 | AR35: =AI35+AO35+AL35 -> 256.5857006 | AT35: G&A Exp | AU35: =L40*1000 -> 303596.31 | AV35: ='March 2024'!L40*1000 -> 69263.31 | AW35: ='March 2025'!L40*1000 -> 72788 | AX35: =AU35-AV35+AW35 -> 307121 | AY35: linked
A36: Total Incurred Benefits | D36: =SUM(D34:D35) -> 245254.4421 | E36: 252806.7779 | F36: =SUM(F34:F35) -> 7932.23542 | G36: 12663.384 | H36: 68992.76879 | I36: 71164.995 | J36: 88280.10422 | K36: 86065.50671 | L36: 441.64711 | M36: 541.5945243 | N36: =SUM(N34:N35) -> 2479.25871 | O36: 3364.78408 | P36: 1154.89966 | Q36: 2970.052446 | R36: 909.85147 | S36: 834.0223249 | T36: 40685.32135 | U36: 38722.893 | V36: 7741.66997 | W36: 6370.876 | X36: 0 | Y36: 0 | Z36: =SUM(Z34:Z35) -> 0 | AA36: 0 | AB36: 0 | AC36: 0 | AD36: 0 | AE36: 0 | AF36: 0 | AG36: 0 | AH36: 463872.1988 | AI36: =SUM(AI34:AI35) -> 475504.886 | AK36: =SUM(AK34:AK35) -> 358.32587 | AL36: =SUM(AL34:AL35) -> 256.5857006 | AN36: =SUM(AN34:AN35) -> 0 | AO36: =SUM(AO34:AO35) -> 0 | AQ36: =SUM(AQ34:AQ35)-1 -> 464229.5247 | AR36: =SUM(AR34:AR35) -> 475761.4717
AT37: Dental Premium - CA only | AU37: 68796 | AV37: 20842 | AW37: 20335 | AX37: =AU37-AV37+AW37 -> 68289 | AY37: source: Premiums By LOB Crystal report - CA only
A38: Operating Expenses | AT38: CA Prem Taxes (2.35% prem tax rate) | AU38: =AU37*0.0235 -> 1616.706 | AX38: =AX37*0.0235 -> 1604.7915 | AY38: calc
B39: Commission expense | D39: =[36]Prem_Loss_Comm!E79/1000-[36]Prem_Loss_Comm!Q82/1000+1 -> 28927.83446 | E39: =[36]Plan!P34+[36]Plan!P47+[36]Plan!P65+[36]Plan!P88 -> 28131.3575 | F39: =[36]Prem_Loss_Comm!V79/1000+1 -> 2902.51562 | G39: =[36]Plan!P35+[36]Plan!P48+[36]Plan!P66 -> 2607.616761 | H39: =[36]Prem_Loss_Comm!F79/1000 -> 15139.56613 | I39: =[36]Plan!P36+[36]Plan!P49+[36]Plan!P67 -> 15305.7168 | J39: =[36]Prem_Loss_Comm!G79/1000 -> 13366.95669 | K39: =[36]Plan!P37+[36]Plan!P50+[36]Plan!P68 -> 13476.91999 | L39: =[36]Prem_Loss_Comm!H79/1000 -> 83.95275 | M39: =[36]Plan!P38+[36]Plan!P51+[36]Plan!P69 -> 87.11198228 | N39: =[36]Prem_Loss_Comm!R79/1000 -> 1540.22074 | O39: =[36]Plan!P39+[36]Plan!P52+[36]Plan!P70 -> 1606.917774 | P39: =[36]Prem_Loss_Comm!T79/1000 -> 1501.34474 | Q39: =[36]Plan!P42+[36]Plan!P55 -> 1406.270692 | R39: =[36]Prem_Loss_Comm!U79/1000 -> 285.0092 | S39: =+[36]Plan!P43+[36]Plan!P56 -> 270.888706 | T39: =[36]Prem_Loss_Comm!S79/1000 -> 6931.9486 | U39: =[36]Plan!P44+[36]Plan!P57+[36]Plan!P74 -> 6719.375114 | V39: =[36]Prem_Loss_Comm!Q79/1000 -> 14.15681 | W39: =[36]Plan!P60 -> 99.44134814 | X39: =[36]Prem_Loss_Comm!L79/1000 -> 36.27829 | Y39: =[36]Plan!P40+[36]Plan!P53 -> 20.6611065 | Z39: =-[36]Prem_Loss_Comm!M79/1000 -> -0.91101 | AA39: =[36]Plan!R40+[36]Plan!R53 -> 0 | AB39: =-[36]Prem_Loss_Comm!N79/1000 -> 0 | AC39: =[36]Plan!T40+[36]Plan!T53 -> 0 | AD39: 0 | AE39: =+[36]Plan!P73 -> 172.519514 | AF39: 0 | AG39: =[36]Plan!P41+[36]Plan!P54 -> 0 | AH39: =+D39+H39+J39+L39+X39+Z39+AB39+AF39+AD39+N39+P39+R39+T39+V39+F39 -> 70728.87302 | AI39: =+E39+G39+I39+K39+M39+O39+Q39+S39+U39+W39+Y39+AA39+AC39+AE39+AG39 -> 69904.79728 | AK39: 0 | AL39: 0 | AN39: 0 | AO39: 0 | AQ39: =AH39+AN39+AK39 -> 70728.87302 | AR39: =AI39+AO39+AL39 -> 69904.79728 | AT39: Dental premium - all states | AU39: 742249 | AV39: 211594 | AW39: 163925 | AX39: =AU39-AV39+AW39 -> 694580 | AY39: source: Premiums By LOB Crystal report - all states
B40: General and administrative expense | D40: ='[36]G&A'!F30+1 -> 46854.12967 | E40: ='[36]G&A'!F7+'[36]G&A'!F8+'[36]G&A'!F9+'[36]G&A'!F10+'[36]G&A'!F11+'[36]G&A'!F12+'[36]G&A'!F13+'[36]G&A'!F14+'[36]G&A'!F15+'[36]G&A'!F16+'[36]G&A'!F17+'[36]G&A'!F18 -> 43321.718 | F40: ='[36]G&A'!G30 -> 5192.75908 | G40: =+'[36]G&A'!G7+'[36]G&A'!G8+'[36]G&A'!G9+'[36]G&A'!G10+'[36]G&A'!G11+'[36]G&A'!G12+'[36]G&A'!G13+'[36]G&A'!G14+'[36]G&A'!G15+'[36]G&A'!G16+'[36]G&A'!G17+'[36]G&A'!G18 -> 4552.441 | H40: ='[36]G&A'!I30-'Dec 2024'!X40 -> 28340.14707 | I40: ='[36]G&A'!I7+'[36]G&A'!I8+'[36]G&A'!I9+'[36]G&A'!I10+'[36]G&A'!I11+'[36]G&A'!I12+'[36]G&A'!I13+'[36]G&A'!I14+'[36]G&A'!I15+'[36]G&A'!I16+'[36]G&A'!I17+'[36]G&A'!I18 -> 25607.37 | J40: ='[36]G&A'!H30 -> 22200.70395 | K40: ='[36]G&A'!H7+'[36]G&A'!H8+'[36]G&A'!H9+'[36]G&A'!H10+'[36]G&A'!H11+'[36]G&A'!H12+'[36]G&A'!H13+'[36]G&A'!H14+'[36]G&A'!H15+'[36]G&A'!H16+'[36]G&A'!H17+'[36]G&A'!H18 -> 20257.366 | L40: ='[36]G&A'!J30-'Dec 2024'!AF40 -> 303.59631 | M40: ='[36]G&A'!J7+'[36]G&A'!J8+'[36]G&A'!J9+'[36]G&A'!J10+'[36]G&A'!J11+'[36]G&A'!J12+'[36]G&A'!J13+'[36]G&A'!J14+'[36]G&A'!J15+'[36]G&A'!J16+'[36]G&A'!J17+'[36]G&A'!J18 -> 318.965 | N40: ='[36]G&A'!K30 -> 2762.39794 | O40: ='[36]G&A'!K7+'[36]G&A'!K8+'[36]G&A'!K9+'[36]G&A'!K10+'[36]G&A'!K11+'[36]G&A'!K12+'[36]G&A'!K13+'[36]G&A'!K14+'[36]G&A'!K15+'[36]G&A'!K16+'[36]G&A'!K17+'[36]G&A'!K18 -> 2535.011 | P40: ='[36]G&A'!M30 -> 2561.36095 | Q40: ='[36]G&A'!M7+'[36]G&A'!M8+'[36]G&A'!M9+'[36]G&A'!M10+'[36]G&A'!M11+'[36]G&A'!M12+'[36]G&A'!M13+'[36]G&A'!M14+'[36]G&A'!M15+'[36]G&A'!M16+'[36]G&A'!M17+'[36]G&A'!M18 -> 2315.543 | R40: =+'[36]G&A'!N30 -> 584.5382 | S40: =+'[36]G&A'!N7+'[36]G&A'!N8+'[36]G&A'!N9+'[36]G&A'!N10+'[36]G&A'!N11+'[36]G&A'!N12+'[36]G&A'!N13+'[36]G&A'!N14+'[36]G&A'!N15+'[36]G&A'!N16+'[36]G&A'!N17+'[36]G&A'!N18 -> 507.935 | T40: ='[36]G&A'!L30 -> 10353.72747 | U40: ='[36]G&A'!L7+'[36]G&A'!L8+'[36]G&A'!L9+'[36]G&A'!L10+'[36]G&A'!L11+'[36]G&A'!L12+'[36]G&A'!L13+'[36]G&A'!L14+'[36]G&A'!L15+'[36]G&A'!L16+'[36]G&A'!L17+'[36]G&A'!L18 -> 8775.025 | V40: ='[36]G&A'!E30 -> 1884.4658 | W40: =+'[36]G&A'!E7+'[36]G&A'!E8+'[36]G&A'!E9+'[36]G&A'!E10+'[36]G&A'!E11+'[36]G&A'!E12+'[36]G&A'!E13+'[36]G&A'!E14+'[36]G&A'!E15+'[36]G&A'!E16+'[36]G&A'!E17+'[36]G&A'!E18 -> 2057.353 | X40: =X12*0.05 -> 428.4104455 | Y40: =+'[36]G&A'!R7+'[36]G&A'!R8+'[36]G&A'!R9+'[36]G&A'!R10+'[36]G&A'!R11+'[36]G&A'!R12+'[36]G&A'!R13+'[36]G&A'!R14+'[36]G&A'!R15+'[36]G&A'!R16+'[36]G&A'!R17+'[36]G&A'!R18 -> 1500 | AA40: 0 | AC40: 0 | AD40: 0 | AE40: 0 | AF40: =AF12*0.05 -> 0 | AG40: =AG12*0.05 -> 0 | AH40: =+D40+H40+J40+L40+X40+Z40+AB40+AF40+AD40+N40+P40+R40+T40+V40+F40 -> 121466.2369 | AI40: 111748.727 | AK40: ='[36]G&A'!D30 -> 674.41707 | AL40: ='[36]G&A'!D7+'[36]G&A'!D8+'[36]G&A'!D9+'[36]G&A'!D10+'[36]G&A'!D11+'[36]G&A'!D12+'[36]G&A'!D13+'[36]G&A'!D14+'[36]G&A'!D15+'[36]G&A'!D16+'[36]G&A'!D17+'[36]G&A'!D18 -> 523.309 | AN40: ='[36]G&A'!O30 -> 4516.31919 | AO40: ='[36]G&A'!O7+'[36]G&A'!O8+'[36]G&A'!O9+'[36]G&A'!O10+'[36]G&A'!O11+'[36]G&A'!O12+'[36]G&A'!O13+'[36]G&A'!O14+'[36]G&A'!O15+'[36]G&A'!O16+'[36]G&A'!O17+'[36]G&A'!O18-AO52 -> 4020.72 | AQ40: =AH40+AN40+AK40 -> 126656.9731 | AR40: =AI40+AO40+AL40 -> 116292.756 | AU40: =AU37/AU39 -> 0.09268587765 | AX40: =AX37/AX39 -> 0.09831696853 | AY40: calc
B41: ACA Tax | D41: 0 | E41: 0 | F41: 0 | G41: 0 | H41: 0 | I41: 0 | J41: 0 | K41: 0 | L41: 0 | M41: 0 | N41: 0 | O41: 0 | P41: 0 | Q41: 0 | R41: 0 | S41: 0 | T41: 0 | U41: 0 | V41: 0 | W41: 0 | X41: 0 | Y41: 0 | Z41: 0 | AA41: 0 | AB41: 0 | AC41: 0 | AD41: 0 | AE41: 0 | AF41: 0 | AG41: 0 | AH41: 0 | AI41: 0 | AK41: 0 | AL41: 0 | AN41: 0 | AO41: 0 | AQ41: 0 | AR41: 0
B42: Premium tax | D42: ='[36]Prem Taxes'!F7 -> 4213.216619 | E42: =[36]Plan!P3+[36]Plan!P16 -> 4198.85251 | F42: ='[36]Prem Taxes'!F8 -> 395.8441955 | G42: =[36]Plan!P4+[36]Plan!P17 -> 360.1764793 | H42: ='[36]Prem Taxes'!F9 -> 1442.328516 | I42: =[36]Plan!P5+[36]Plan!P18 -> 1507.683416 | J42: ='[36]Prem Taxes'!F10 -> 1327.140366 | K42: =[36]Plan!P6+[36]Plan!P19 -> 1667.725584 | L42: ='[36]Prem Taxes'!F11 -> 9.003352131 | M42: =[36]Plan!P7+[36]Plan!P20 -> 10.86825684 | N42: ='[36]Prem Taxes'!F12 -> 137.9916981 | O42: =[36]Plan!P8+[36]Plan!P21 -> 143.5514645 | P42: ='[36]Prem Taxes'!F14 -> 112.0565288 | Q42: =[36]Plan!P11+[36]Plan!P24 -> 116.8123731 | R42: ='[36]Prem Taxes'!F15 -> 20.01128259 | S42: =+[36]Plan!P12+[36]Plan!P25 -> 20.83759277 | T42: ='[36]Prem Taxes'!F13 -> 848.6614768 | U42: =[36]Plan!P13+[36]Plan!P26 -> 839.5001702 | V42: ='[36]Prem Taxes'!F16 -> 72.40582364 | W42: =[36]Plan!P29 -> 86.84544404 | X42: 0 | Y42: =[36]Plan!P9+[36]Plan!P22 -> 0 | Z42: 0 | AA42: =[36]Plan!R9+[36]Plan!R22 -> 0 | AB42: 0 | AC42: =[36]Plan!T9+[36]Plan!T22 -> 0 | AD42: 0 | AE42: 0 | AF42: 0 | AG42: =[36]Plan!P10+[36]Plan!P23 -> 0 | AH42: 8578.659859 | AI42: 8952.853291 | AK42: 0 | AL42: 0 | AN42: 0 | AO42: 0 | AQ42: =AH42+AN42+AK42 -> 8578.659859 | AR42: =AI42+AO42+AL42 -> 8952.853291 | AT42: CA Commissions exp | AU42: =AU40*AU34 -> 7781.234315 | AX42: =AX40*AX34 -> 7650.057086
A43: Total Operating Expenses | D43: =SUM(D39:D42) -> 79995.18075 | E43: 75651.92801 | F43: 8491.118895 | G43: =SUM(G39:G42) -> 7520.23424 | H43: 44922.04172 | I43: 42420.77022 | J43: 36894.80101 | K43: =SUM(K39:K42) -> 35402.01157 | L43: 396.5524121 | M43: 416.9452391 | N43: 4440.610378 | O43: 4285.480238 | P43: 4174.762219 | Q43: 3838.626066 | R43: =SUM(R39:R42) -> 889.5586826 | S43: 799.6612988 | T43: 18134.33755 | U43: 16333.90028 | V43: 1971.028434 | W43: 2243.639792 | X43: 464.6887355 | Y43: 1520.661107 | Z43: =SUM(Z39:Z42) -> -0.91101 | AA43: 0 | AB43: 0 | AC43: 0 | AD43: 0 | AE43: 172.519514 | AF43: 0 | AG43: 0 | AH43: 200773.7698 | AI43: =SUM(AI39:AI42) -> 190606.3776 | AK43: =SUM(AK39:AK42) -> 674.41707 | AL43: =SUM(AL39:AL42) -> 523.309 | AN43: =SUM(AN39:AN42) -> 4516.31919 | AO43: =SUM(AO39:AO42) -> 4020.72 | AQ43: =SUM(AQ39:AQ42)-1 -> 205963.506 | AR43: =SUM(AR39:AR42) -> 195150.4066 | AT43: CA G&A exp | AU43: =AU40*AU35 -> 28139.09044 | AX43: =AX40*AX35 -> 30195.20569
AT44: CA Premium tax | AU44: =AU38 -> 1616.706 | AX44: =AX38 -> 1604.7915
A45: Total Incurred Benefits and Operating Expenses | D45: =+D36+D43 -> 325249.6229 | E45: 328458.706 | F45: 16423.35432 | G45: =+G36+G43 -> 20183.61824 | H45: 113914.8105 | I45: 113585.7652 | J45: 125174.9052 | K45: 121467.5183 | L45: 838.1995221 | M45: =+M36+M43 -> 958.5397634 | N45: 6919.869088 | O45: 7650.264318 | P45: =+P36+P43 -> 5329.661879 | Q45: =+Q36+Q43 -> 6808.678512 | R45: =+R36+R43 -> 1799.410153 | S45: =+S36+S43 -> 1633.683624 | T45: 58819.6589 | U45: 55056.79328 | V45: 9712.698404 | W45: 8614.515792 | X45: 464.6887355 | Y45: 1520.661107 | Z45: -0.91101 | AA45: 0 | AB45: 0 | AC45: 0 | AD45: 0 | AE45: 172.519514 | AF45: 0 | AG45: 0 | AH45: 664645.9686 | AI45: =+AI36+AI43 -> 666111.2636 | AK45: =+AK36+AK43 -> 1032.74294 | AL45: =+AL36+AL43 -> 779.8947006 | AN45: =+AN36+AN43 -> 4516.31919 | AO45: =+AO36+AO43 -> 4020.72 | AQ45: =+AQ36+AQ43 -> 670193.0307 | AR45: =+AR36+AR43 -> 670911.8783
A47: Pre-tax Income (Loss) Before GIAS, TB & C&S Allocation | D47: =D31-D45 -> 24175.30385 | E47: =E31-E45 -> 11354.98965 | F47: =F31-F45 -> 15258.93352 | G47: 8329.233461 | H47: 9451.80923 | I47: 6399.301733 | J47: 12405.21362 | K47: =K31-K45 -> 10755.37063 | L47: -85.47832213 | M47: =M31-M45 -> -127.240594 | N47: 4429.404952 | O47: 3619.480163 | P47: =P31-P45 -> 3964.092711 | Q47: 3110.166492 | R47: =R31-R45 -> -77.98103259 | S47: =S31-S45 -> 33.32379798 | T47: 11285.18905 | U47: 11648.88904 | V47: 1359.201186 | W47: 1154.103127 | X47: 2273.974934 | Y47: 1160.674452 | Z47: =Z31-Z45 -> 490.45275 | AA47: =AA31-AA45 -> 0 | AB47: =AB31-AB45 -> 0 | AC47: =AC31-AC45 -> 0 | AD47: 0 | AE47: -172.519514 | AF47: 0 | AG47: 0 | AH47: 84930.11646 | AI47: =AI31-AI45 -> 57265.77244 | AK47: =AK31-AK45 -> 2361.71032 | AL47: =AL31-AL45 -> 2141.564747 | AN47: =AN31-AN45 -> 13373.68081 | AO47: =AO31-AO45 -> 11044.05 | AQ47: =AQ31-AQ45-1 -> 100666.5076 | AR47: =AR31-AR45 -> 70451.38719 | AT47: Earned Premium (Pt 1 Summary of Data 1.1) | AU47: ='Pt 1 Summary of Data'!M21 -> 69331 | AX47: ='Pt 1 Summary of Data'!N21 -> 69292
A48: C&S Earnings Allocation | D48: ='[36]C&S Allocation'!C25 -> 8165.730681 | E48: ='[36]C&S Allocation'!G25 -> 6743.29971 | F48: ='[36]C&S Allocation'!C26 -> 108.6228664 | G48: ='[36]C&S Allocation'!G26 -> 89.70128601 | H48: ='[36]C&S Allocation'!C27 -> 270.8312933 | I48: ='[36]C&S Allocation'!G27 -> 223.6537859 | J48: ='[36]C&S Allocation'!C28 -> 1970.611819 | K48: ='[36]C&S Allocation'!G28 -> 1627.340727 | L48: ='[36]C&S Allocation'!C29 -> 7.143430705 | M48: ='[36]C&S Allocation'!G29 -> 5.899079468 | N48: ='[36]C&S Allocation'!C30 -> 57.45049824 | O48: ='[36]C&S Allocation'!G30 -> 47.44289804 | P48: ='[36]C&S Allocation'!C31 -> 61.56961269 | Q48: ='[36]C&S Allocation'!G31 -> 50.84448258 | R48: 0 | S48: ='[36]C&S Allocation'!E32 -> 0 | T48: ='[36]C&S Allocation'!C32 -> 379.9122451 | U48: ='[36]C&S Allocation'!G32 -> 313.7333611 | V48: ='[36]C&S Allocation'!C33 -> 263.3923097 | W48: ='[36]C&S Allocation'!G33 -> 217.5106375 | X48: 0 | Y48: 0 | Z48: 0 | AA48: 0 | AB48: 0 | AC48: 0 | AD48: 0 | AE48: 0 | AF48: 0 | AG48: 0 | AH48: =+D48+H48+J48+L48+X48+Z48+AB48+AF48+AD48+N48+P48+R48+T48+V48+F48 -> 11285.26476 | AI48: =+E48+G48+I48+K48+M48+O48+Q48+S48+U48+W48+Y48+AA48+AC48+AE48+AG48 -> 9319.425968 | AK48: ='[36]C&S Allocation'!C34 -> 190.7571888 | AL48: ='[36]C&S Allocation'!G34 -> 157.5282049 | AN48: =-AK48-AH48 -> -11476.02194 | AO48: =-AI48-AL48 -> -9476.954173 | AQ48: =AQ32-AQ46 -> 0 | AR48: 0 | AT48: Claims Incurred (Pt 1 Summary of Data 2.1) | AU48: ='Pt 1 Summary of Data'!M24 -> 49143 | AX48: ='Pt 1 Summary of Data'!N24 -> 43739
A49: Pre-tax Income (Loss) Before GIAS and Total Blue Costs | D49: =D47+D48 -> 32341.03453 | E49: =E47+E48 -> 18098.28936 | F49: =F47+F48 -> 15367.55639 | G49: 8418.934747 | H49: 9722.640523 | I49: 6622.955519 | J49: 14375.82544 | K49: 12382.71136 | L49: -78.33489143 | M49: -121.3415145 | N49: 4486.85545 | O49: 3666.923061 | P49: 4025.662324 | Q49: 3161.010974 | R49: -77.98103259 | S49: 33.32379798 | T49: 11665.1013 | U49: 11962.6224 | V49: 1622.593496 | W49: 1371.613765 | X49: 2273.974934 | Y49: 1160.674452 | Z49: 490.45275 | AA49: 0 | AB49: 0 | AC49: 0 | AD49: 0 | AE49: -172.519514 | AF49: 0 | AG49: 0 | AH49: 96215.38122 | AI49: =AI47+AI48 -> 66585.19841 | AK49: =AK47+AK48 -> 2552.467509 | AL49: 2299.092952 | AN49: =AN47+AN48 -> 1897.658865 | AO49: =AO47+AO48 -> 1567.095827 | AQ49: =AQ47+AQ48 -> 100666.5076 | AR49: =AR47+AR48 -> 70451.38719 | AT49: Net Income | AU49: =AU47-AU48-AU42-AU43-AU44 -> -17349.03076 | AX49: =AX47-AX48-AX42-AX43-AX44 -> -13897.05428
AT50: FIT at 21% | AU50: =AU49*0.21 -> -3643.296459 | AX50: =AX49*0.21 -> -2918.381398 | AY50: Note: since FIT taxes are a benefit, do not enter anything on tab Pt 1 line 3.1a
A51: GIAS Write-off | AN51: 2893 | AO51: 0 | AQ51: =AN51 -> 2893 | AR51: 0
A52: Total Blue Costs | AN52: =+'[36]G&A'!P31 -> 5495.45783 | AO52: =+'[36]G&A'!Q7+'[36]G&A'!Q8+'[36]G&A'!Q9+'[36]G&A'!Q10+'[36]G&A'!Q11+'[36]G&A'!Q12+'[36]G&A'!Q13+'[36]G&A'!Q14+'[36]G&A'!Q15+'[36]G&A'!Q16+'[36]G&A'!Q17+'[36]G&A'!Q18-2 -> 5057.867 | AQ52: =AN52 -> 5495.45783 | AR52: =SUM(AO52) -> 5057.867
A54: Pre-tax Income (Loss) | D54: =D49-D52 -> 32341.03453 | E54: =E49-E52 -> 18098.28936 | F54: =F49-F52 -> 15367.55639 | G54: 8418.934747 | H54: 9722.640523 | I54: 6622.955519 | J54: 14375.82544 | K54: 12382.71136 | L54: -78.33489143 | M54: -121.3415145 | N54: 4486.85545 | O54: 3666.923061 | P54: 4025.662324 | Q54: 3161.010974 | R54: -77.98103259 | S54: 33.32379798 | T54: 11665.1013 | U54: 11962.6224 | V54: =V49-V52 -> 1622.593496 | W54: 1371.613765 | X54: 2273.974934 | Y54: 1160.674452 | Z54: 490.45275 | AA54: 0 | AB54: 0 | AC54: 0 | AD54: 0 | AE54: -172.519514 | AF54: 0 | AG54: 0 | AH54: =AH49-AH52 -> 96215.38122 | AI54: =AI49-AI52 -> 66585.19841 | AJ54: =AJ31-AJ45 -> 0 | AK54: =AK49-AK52 -> 2552.467509 | AL54: 2299.092952 | AM54: =AM31-AM45 -> 0 | AN54: =AN49-AN51-AN52 -> -6490.798965 | AO54: =AO49-AO51-AO52 -> -3490.771173 | AP54: =AP31-AP45 -> 0 | AQ54: =AQ49-AQ51-AQ52 -> 92278.04976 | AR54: =AR49-AR51-AR52-1 -> 65392.52019
A56: Insurance loss ratio (insurance benefit expenses / insurance premiums) | D56: =+D34/D11 -> 0.7154800397 | E56: =+E34/E11 -> 0.7586276 | F56: 0.2503681382 | G56: 0.450033038 | H56: 0.5689817012 | I56: 0.6041798472 | J56: 0.7336181081 | K56: 0.7379731759 | L56: 0.5882971068 | M56: 0.6528082999 | N56: 0.2184508631 | O56: 0.3000264496 | P56: 0.12426621 | Q56: =+Q34/Q11 -> 0.3000248854 | R56: =+R34/R11 -> 0.528544254 | S56: 0.5003111048 | T56: 0.5803496126 | U56: 0.5811892232 | V56: 1.33918084 | W56: 0.961000075 | AH56: =+AH34/AH11 -> 0.6487196097 | AI56: 0.6864906849 | AQ56: =+AQ34/AQ11 -> 0.6487196097 | AR56: =+(AR34)/AR11 -> 0.6864906849
A58: G&A Expense ratio (G&A expenses / insurance premiums incl. ASO) | D58: =+D40/(D11+D12) -> 0.1366874103 | E58: =+E40/(E11+E12) -> 0.1300006717 | F58: 0.1639010133 | G58: 0.1617852585 | H58: 0.2337205098 | I58: 0.2174026274 | J58: 0.1844904758 | K58: 0.1736978413 | L58: 0.404406203 | M58: 0.3844628962 | N58: 0.2433986465 | O58: 0.2260383823 | P58: 0.2756002351 | Q58: 0.2339085036 | R58: 0.3395656511 | S58: 0.3046987034 | T58: 0.1476891795 | U58: 0.1317037434 | V58: 0.3259814101 | W58: 0.3103366613 | X58: 0.05 | Y58: 0.1672712821 | Z58: 0 | AH58: =+AH40/(AH11+AH12) -> 0.1677326266 | AI58: 0.1592706591 | AQ58: =+AQ40/(AQ11+AQ12) -> 0.17490051 | AR58: =+AR40/(AR11+AR12) -> 0.1657470684
A60: Pre-tax Margin (Pre-tax income (loss) / total premiums) | D60: =D49/(D11+D12+D29) -> 0.0943484019 | E60: =E49/(E11+E12+E29) -> 0.05430970616 | F60: 0.4850519782 | G60: 0.2991932315 | H60: 0.08018238204 | I60: 0.05622787234 | J60: 0.1194648098 | K60: 0.1061762043 | L60: -0.1043461826 | M60: -0.1462583986 | N60: 0.3953429474 | O60: 0.3269671637 | P60: 0.4331578034 | Q60: 0.319314885 | R60: -0.04530017047 | S60: 0.01999019174 | T60: 0.1663950731 | U60: 0.1795461723 | V60: 0.2806818335 | W60: 0.2068979102 | X60: 0.8303228174 | Y60: 0.4328717637 | Z60: 1.001860944 | AH60: =AH49/(AH11+AH12+AH29) -> 0.1339512993 | AI60: 0.09575896094 | AJ60: =+AJ47/AJ14 ->  | AQ60: =AQ49/(AQ11+AQ12+AQ29) -> 0.1401481688 | AR60: =AR49/(AR11+AR12+AR29) -> 0.1013190889

Sheet March 2024
A1: DEARBORN LIFE INSURANCE COMPANY
A2: MARCH 2024
A3: INCOME STATEMENT BY LINE OF BUSINESS
A4: $'(000)'s
D5: Insured | AG5: Annuities | AJ5: C&S | AK5: C&S | AM5: Total All Lines | AN5: Total All Lines
D6: Life | F6: ADD | H6: STD | J6: LTD | L6: Dental | N6: Critical Illness | P6: Accident | R6: Hospital Indemnity | T6: Vision | V6: Individual Life | X6: STD ASO | Z6: LTD ASO | AB6: DENTAL ASO | AD6: TOTAL INSURED | AG6: Annuities | AH6: Annuities | AM6: of Business | AN6: of Business
D7: Actual | E7: Plan | F7: Actual | G7: Plan | H7: Actual | I7: Plan | J7: Actual | K7: Plan | L7: Actual | M7: Plan | N7: Actual | O7: Plan | P7: Actual | Q7: Plan | R7: Actual | S7: Plan | T7: Actual | U7: Plan | V7: Actual | W7: Plan | X7: Actual | Y7: Plan | Z7: Actual | AA7: Plan | AB7: Actual | AC7: Plan | AD7: Actual | AE7: Plan | AG7: Actual | AH7: Plan | AJ7: Actual | AK7: Plan | AM7: Actual | AN7: Plan
A9: Revenues
A10: Premiums
B11: Insurance premiums | D11: =(-[37]Prem_Loss_Comm!E33/1000)+[37]Prem_Loss_Comm!E14/1000 -> 85011.97303 | E11: =[37]Plan!P91+[37]Plan!P104 -> 82725.40429 | F11: =-[37]Prem_Loss_Comm!T33/1000 -> 7847.31059 | G11: =[37]Plan!P92+[37]Plan!P105 -> 7109.089378 | H11: =-[37]Prem_Loss_Comm!F33/1000 -> 29232.89038 | I11: =[37]Plan!P93+[37]Plan!P106 -> 29255.609 | J11: =-[37]Prem_Loss_Comm!G33/1000 -> 30565.27355 | K11: =[37]Plan!P94+[37]Plan!P107 -> 28989.23834 | L11: =-[37]Prem_Loss_Comm!H33/1000 -> 211.6979 | M11: =[37]Plan!P95+[37]Plan!P109 -> 215.2994859 | N11: =-[37]Prem_Loss_Comm!P33/1000 -> 2719.22871 | O11: =[37]Plan!P96+[37]Plan!P110 -> 2732.233682 | P11: =-[37]Prem_Loss_Comm!R33/1000 -> 2296.46836 | Q11: =[37]Plan!P97+[37]Plan!P114 -> 2414.365433 | R11: =-[37]Prem_Loss_Comm!S33/1000 -> 244.18996 | S11: =+[37]Plan!P98 -> 327.8262761 | T11: =-[37]Prem_Loss_Comm!Q33/1000 -> 16839.56228 | U11: =[37]Plan!P99+[37]Plan!P108 -> 16197.03317 | V11: =-[37]Prem_Loss_Comm!O33/1000 -> 1434.47463 | W11: =[37]Plan!P117 -> 1657.35575 | X11: 0 | Y11: 0 | Z11: 0 | AA11: 0 | AB11: 0 | AC11: 0 | AD11: =+D11+H11+J11+L11+X11+AB11+Z11+N11+P11+T11+V11+F11+R11 -> 176403.0694 | AE11: =+E11+I11+K11+M11+Y11+AC11+AA11+O11+Q11+U11+W11+G11+S11 -> 171623.4548 | AG11: 0 | AH11: 0 | AJ11: 0 | AK11: 0 | AM11: =AD11+AJ11+AG11 -> 176403.0694 | AN11: =AE11+AK11+AH11 -> 171623.4548
B12: ASO claims and fees | D12: =(-[37]Prem_Loss_Comm!E38/1000)-[37]Prem_Loss_Comm!E14/1000 -> 138.24196 | F12: =-[37]Prem_Loss_Comm!G38/1000 -> 0 | G12: 0 | H12: 0 | I12: 0 | J12: 0 | K12: 0 | L12: 0 | M12: 0 | N12: 0 | O12: 0 | P12: 0 | Q12: 0 | R12: 0 | S12: 0 | T12: 0 | U12: 0 | W12: 0 | X12: =-(([37]Prem_Loss_Comm!L33+[37]Prem_Loss_Comm!L38)/1000+[37]Prem_Loss_Comm!F38/1000+[37]Prem_Loss_Comm!J38/1000) -> 2040.49183 | Y12: =[37]Plan!P100+[37]Plan!P111 -> 2533.42789 | Z12: =-[37]Prem_Loss_Comm!M33 -> 0 | AA12: =[37]Plan!P113 -> 0 | AB12: =-([37]Prem_Loss_Comm!K33+[37]Prem_Loss_Comm!K38+[37]Prem_Loss_Comm!H38)/1000 -> 0 | AC12: =[37]Plan!P101+[37]Plan!P112 -> 0 | AD12: =+D12+H12+J12+L12+X12+AB12+Z12+R12 -> 2178.73379 | AE12: =+E12+I12+K12+M12+Y12+AC12+AA12+O12+Q12+U12+W12 -> 2533.42789 | AG12: 0 | AH12: 0 | AJ12: 0 | AK12: 0 | AM12: =AD12+AJ12+AG12 -> 2178.73379 | AN12: 2533.42789
B13: Annuity premiums | D13: 0 | E13: 0 | F13: 0 | G13: 0 | H13: 0 | I13: 0 | J13: 0 | K13: 0 | L13: 0 | M13: 0 | N13: 0 | O13: 0 | P13: 0 | Q13: 0 | R13: 0 | S13: 0 | T13: 0 | U13: 0 | W13: 0 | X13: 0 | Y13: 0 | Z13: 0 | AA13: 0 | AB13: 0 | AC13: 0 | AD13: =+D13+H13+J13+L13+X13+AB13+Z13 -> 0 | AE13: =+E13+I13+K13+M13+Y13+AC13+AA13+O13+Q13+U13+W13 -> 0 | AG13: =-[37]Prem_Loss_Comm!J33/1000 -> 0 | AH13: 0 | AJ13: 0 | AK13: 0 | AM13: 0 | AN13: 0
B14: Total premiums | D14: =SUM(D11:D13) -> 85150.21499 | E14: 82725.40429 | F14: =SUM(F11:F13) -> 7847.31059 | G14: 7109.089378 | H14: 29232.89038 | I14: 29255.609 | J14: 30565.27355 | K14: 28989.23834 | L14: 211.6979 | M14: 215.2994859 | N14: =SUM(N11:N13) -> 2719.22871 | O14: =SUM(O11:O13) -> 2732.233682 | P14: =SUM(P11:P13) -> 2296.46836 | Q14: 2414.365433 | R14: 244.18996 | S14: 327.8262761 | T14: 16839.56228 | U14: 16197.03317 | V14: =SUM(V11:V13) -> 1434.47463 | W14: =SUM(W11:W13) -> 1657.35575 | X14: 2040.49183 | Y14: =SUM(Y11:Y13) -> 2533.42789 | Z14: 0 | AA14: 0 | AB14: 0 | AC14: 0 | AD14: =SUM(AD11:AD13) -> 178581.8032 | AE14: =SUM(AE11:AE13) -> 174156.8827 | AG14: =SUM(AG11:AG13) -> 0 | AH14: 0 | AJ14: =SUM(AJ11:AJ13) -> 0 | AK14: 0 | AM14: =SUM(AM11:AM13) -> 178581.8032 | AN14: =SUM(AN11:AN13) -> 174156.8827
A16: Net investment income | D16: ='[37]DNLStat Insured Allocation'!E10+'[37]DNLStat Insured Allocation'!E16+1 -> 1742 | E16: ='[37]DL Insured LOB'!H75+'[37]DL Insured LOB'!S75 -> 1604.095181 | F16: 0 | G16: ='[37]DL Insured LOB'!J75+'[37]DL Insured LOB'!U75 -> 94.4292216 | H16: ='[37]DNLStat Insured Allocation'!E11+'[37]DNLStat Insured Allocation'!E17 -> 207 | I16: ='[37]DL Insured LOB'!M75+'[37]DL Insured LOB'!X75 -> 251.7596048 | J16: ='[37]DNLStat Insured Allocation'!E12+'[37]DNLStat Insured Allocation'!E18 -> 4226 | K16: ='[37]DL Insured LOB'!K75+'[37]DL Insured LOB'!V75 -> 3938.239332 | L16: ='[37]DNLStat Insured Allocation'!E13+'[37]DNLStat Insured Allocation'!E19 -> 1 | M16: ='[37]DL Insured LOB'!G75 -> 0.4193661289 | N16: 0 | O16: ='[37]DL Insured LOB'!N75+'[37]DL Insured LOB'!Y75 -> 13.83032324 | P16: 0 | Q16: ='[37]DL Insured LOB'!O75+'[37]DL Insured LOB'!Z75 -> 4.920418912 | R16: 0 | S16: 0 | T16: 0 | U16: ='[37]DL Insured LOB'!P75+'[37]DL Insured LOB'!AA75 -> 19.86325469 | V16: ='[37]DNLStat Insured Allocation'!E21 -> 1329 | W16: ='[37]DL Insured LOB'!AD75 -> 792.4623162 | X16: 0 | Y16: 0 | Z16: 0 | AA16: 0 | AB16: 0 | AC16: 0 | AD16: =+D16+H16+J16+L16+X16+AB16+Z16+N16+P16+R16+T16+V16+F16 -> 7505 | AE16: =+E16+G16+I16+K16+M16+O16+Q16+S16+U16+W16+Y16+AA16+AC16 -> 6720.019018 | AG16: =+'[37]DNLStat Insured Allocation'!E22 -> 100 | AH16: ='[37]DL Insured LOB'!AE75 -> 71.17053121 | AJ16: ='[37]DNL Stat LOB Actual'!F38 -> 4298 | AK16: ='[37]DL Investments Detail'!C95-2 -> 3869.20925 | AM16: =AD16+AJ16+AG16-1 -> 11902 | AN16: =AE16+AK16+AH16 -> 10660.3988
A17: Realized capital gains (losses) on bond disposals | E17: 0 | F17: ='[37]DNLStat Insured Allocation'!H10+'[37]DNLStat Insured Allocation'!H16 -> 0 | G17: 0 | K17: 0 | L17: ='[37]DNLStat Insured Allocation'!F13+'[37]DNLStat Insured Allocation'!F19 -> 0 | M17: 0 | N17: ='[37]DNLStat Insured Allocation'!H13+'[37]DNLStat Insured Allocation'!H19 -> 0 | O17: 0 | P17: 0 | Q17: 0 | R17: 0 | S17: 0 | T17: 0 | U17: 0 | W17: 0 | X17: 0 | Y17: 0 | Z17: 0 | AA17: 0 | AB17: 0 | AC17: 0 | AE17: =+E17+I17+K17+M17+Y17+AC17+AA17+O17+Q17+U17+W17 -> 0 | AG17: ='[37]DNL Stat LOB Actual'!D51-AG18 -> 0 | AH17: 0 | AJ17: ='[37]DNL Stat LOB Actual'!F51 -> 0 | AK17: 0 | AM17: =AD17+AJ17+AG17 -> 0 | AN17: 0
A18: Realized capital gains (losses) on derivatives | D18: 0 | E18: 0 | F18: 0 | G18: 0 | H18: 0 | I18: 0 | J18: 0 | K18: 0 | L18: 0 | M18: 0 | N18: 0 | O18: 0 | P18: 0 | Q18: 0 | R18: 0 | S18: 0 | T18: 0 | U18: 0 | X18: 0 | Y18: 0 | Z18: 0 | AA18: 0 | AB18: 0 | AC18: 0 | AD18: =+D18+H18+J18+L18+X18+AB18+Z18 -> 0 | AE18: 0 | AG18: 0 | AJ18: 0 | AM18: 0 | AN18: 0
A19: Realized capital losses - impairments | D19: ='[37]DNLStat Insured Allocation'!G10+'[37]DNLStat Insured Allocation'!G16 -> 0 | E19: ='[37]DL Insured LOB'!H72+'[37]DL Insured LOB'!S72 -> -35.99447079 | F19: ='[37]DNLStat Insured Allocation'!I10+'[37]DNLStat Insured Allocation'!I16 -> 0 | G19: ='[37]DL Insured LOB'!J72+'[37]DL Insured LOB'!U72 -> -2.055965725 | H19: ='[37]DNLStat Insured Allocation'!G17+'[37]DNLStat Insured Allocation'!G11 -> 0 | I19: ='[37]DL Insured LOB'!M72+'[37]DL Insured LOB'!X72 -> -5.481450654 | J19: ='[37]DNLStat Insured Allocation'!G12+'[37]DNLStat Insured Allocation'!G18 -> 0 | K19: ='[37]DL Insured LOB'!K72+'[37]DL Insured LOB'!V72 -> -86.81476021 | L19: 0 | M19: ='[37]DL Insured LOB'!G72 -> -0.009130673458 | N19: 0 | O19: ='[37]DL Insured LOB'!N72+'[37]DL Insured LOB'!Y72 -> -0.301121518 | P19: 0 | Q19: ='[37]DL Insured LOB'!O72+'[37]DL Insured LOB'!Z72 -> -0.1071301072 | R19: 0 | S19: 0 | T19: 0 | U19: ='[37]DL Insured LOB'!P72+'[37]DL Insured LOB'!AA72 -> -0.4324738692 | V19: ='[37]DNLStat Insured Allocation'!G22 -> 0 | W19: ='[37]DL Insured LOB'!AD72 -> -17.25393192 | X19: 0 | Y19: 0 | Z19: 0 | AA19: 0 | AB19: 0 | AC19: 0 | AD19: =+D19+H19+J19+L19+X19+AB19+Z19+V19 -> 0 | AE19: =+E19+I19+K19+M19+Y19+AC19+AA19+O19+Q19+U19+W19+G19 -> -148.4504355 | AG19: ='[37]DNL Stat LOB Actual'!D64 -> 0 | AH19: ='[37]DL Insured LOB'!AE72 -> -1.549564534 | AJ19: =+'[37]DNL Stat LOB Actual'!F64 -> 0 | AK19: ='[37]DL Investments Detail'!C92 -> -100 | AM19: 0 | AN19: -250
A21: Other income
B22: Dental TPA fees
B23: Dental network leasing fees
B24: Other revenues | D24: =-'[37]Other Income'!C22/1000 -> 0.85438 | E24: =[37]Plan!D165 -> 55 | F24: 0 | G24: 0 | H24: =-'[37]Other Income'!D22/1000 -> 311.36484 | I24: =[37]Plan!D166 -> 300 | J24: =-'[37]Other Income'!E22/1000 -> 0.57592 | K24: 0 | L24: 0 | M24: 0 | N24: 0 | O24: 0 | P24: 0 | Q24: 0 | R24: 0 | S24: 0 | T24: 0 | U24: 0 | V24: 0 | W24: 0 | X24: 0 | Y24: 0 | Z24: 0 | AA24: 0 | AB24: 0 | AC24: 0 | AD24: =+D24+H24+J24+L24+X24+AB24+Z24 -> 312.79514 | AE24: =+E24+I24+K24+M24+Y24+AC24+AA24+O24+Q24+U24+W24 -> 355 | AG24: =-'[37]Other Income'!H22/1000 -> 761.15299 | AH24: =[37]Plan!P161+[37]Plan!P162 -> 674.2040594 | AJ24: 0 | AK24: 0 | AM24: =AD24+AJ24+AG24 -> 1073.94813 | AN24: =AE24+AK24+AH24 -> 1029.204059
B25: Total other income | D25: =SUM(D24:D24) -> 0.85438 | E25: 55 | F25: 0 | G25: 0 | H25: 311.36484 | I25: 300 | J25: 0.57592 | K25: 0 | L25: 0 | M25: 0 | N25: 0 | O25: 0 | P25: 0 | Q25: 0 | R25: =SUM(R24:R24) -> 0 | S25: 0 | T25: 0 | U25: 0 | V25: 0 | W25: 0 | X25: 0 | Y25: 0 | Z25: 0 | AA25: 0 | AB25: 0 | AC25: 0 | AD25: 312.79514 | AE25: 355 | AG25: =SUM(AG24:AG24) -> 761.15299 | AH25: =SUM(AH24:AH24) -> 674.2040594 | AJ25: =SUM(AJ24:AJ24) -> 0 | AK25: =SUM(AK24:AK24) -> 0 | AM25: =SUM(AM24:AM24) -> 1073.94813 | AN25: =SUM(AN24:AN24) -> 1029.204059
A27: Gross Revenues | D27: =+D25+D19+D18+D16+D14+D17 -> 86893.06937 | E27: 84348.505 | F27: 7847.31059 | G27: 7201.462634 | H27: 29751.25522 | I27: 29801.88716 | J27: 34791.84947 | K27: 32840.66291 | L27: 212.6979 | M27: 215.7097213 | N27: 2719.22871 | O27: 2745.762883 | P27: 2296.46836 | Q27: 2419.178721 | R27: 244.18996 | S27: 327.8262761 | T27: 16839.56228 | U27: 16216.46395 | V27: 2763.47463 | W27: 2432.564134 | X27: 2040.49183 | Y27: 2533.42789 | Z27: 0 | AA27: 0 | AB27: 0 | AC27: 0 | AD27: 186399.5983 | AE27: =+AE25+AE19+AE18+AE16+AE14+AE17 -> 181083.4513 | AG27: =+AG25+AG19+AG18+AG16+AG14+AG17 -> 861.15299 | AH27: =+AH25+AH19+AH18+AH16+AH14+AH17 -> 743.8250261 | AJ27: =+AJ25+AJ19+AJ18+AJ16+AJ14+AJ17 -> 4298 | AK27: =+AK25+AK19+AK18+AK16+AK14+AK17 -> 3769.20925 | AM27: =+AM25+AM19+AM18+AM16+AM14+AM17 -> 191557.7513 | AN27: =+AN25+AN19+AN18+AN16+AN14+AN17 -> 185596.4856
A29: Less: ASO claims | D29: =-[37]Prem_Loss_Comm!E42/1000 -> -11 | E29: 0 | F29: 0 | G29: 0 | H29: 0 | I29: 0 | J29: 0 | K29: 0 | L29: 0 | M29: 0 | N29: 0 | O29: 0 | P29: 0 | Q29: 0 | R29: 0 | S29: 0 | T29: 0 | U29: 0 | V29: 0 | W29: 0 | X29: =(-[37]Prem_Loss_Comm!L67/1000) -> -1375.5075 | Y29: =-[37]Plan!P130-[37]Plan!P144 -> -1835.941418 | Z29: =-[37]Prem_Loss_Comm!M71/1000*0.666 -> 0 | AA29: 0 | AB29: =-[37]Prem_Loss_Comm!K67/1000 -> 0 | AC29: 0 | AD29: =+D29+H29+J29+L29+X29+AB29+Z29 -> -1386.5075 | AE29: =+E29+I29+K29+M29+Y29+AC29+AA29+O29+Q29+U29+W29+G29 -> -1835.941418 | AG29: 0 | AH29: 0 | AJ29: 0 | AK29: 0 | AM29: =AD29+AJ29+AG29 -> -1386.5075 | AN29: =AE29+AK29+AH29 -> -1835.941418
A31: Net Revenues | D31: =SUM(D27:D30) -> 86882.06937 | E31: =SUM(E27:E30) -> 84348.505 | F31: =SUM(F27:F30) -> 7847.31059 | G31: =SUM(G27:G30) -> 7201.462634 | H31: 29751.25522 | I31: 29801.88716 | J31: 34791.84947 | K31: 32840.66291 | L31: 212.6979 | M31: 215.7097213 | N31: 2719.22871 | O31: 2745.762883 | P31: 2296.46836 | Q31: 2419.178721 | R31: 244.18996 | S31: 327.8262761 | T31: 16839.56228 | U31: 16216.46395 | V31: 2763.47463 | W31: 2432.564134 | X31: 664.98433 | Y31: 697.4864718 | Z31: =SUM(Z27:Z30) -> 0 | AA31: 0 | AB31: 0 | AC31: 0 | AD31: 185013.0908 | AE31: =SUM(AE27:AE30) -> 179247.5099 | AG31: =SUM(AG27:AG30) -> 861.15299 | AH31: 743.8250261 | AJ31: =SUM(AJ27:AJ30) -> 4298 | AK31: =SUM(AK27:AK30) -> 3769.20925 | AM31: =SUM(AM27:AM30)+1 -> 190172.2438 | AN31: =SUM(AN27:AN30)-1 -> 183759.5441
A33: Incurred Benefits
B34: Insurance claims and reserves | D34: =(+[37]Prem_Loss_Comm!E67/1000)-([37]Prem_Loss_Comm!E42/1000)-1 -> 58787.8129 | E34: =[37]Plan!P122+[37]Plan!P136 -> 65367.68833 | F34: =[37]Prem_Loss_Comm!T67/1000 -> 1160.6698 | G34: =[37]Plan!P123+[37]Plan!P137 -> 3279.281 | H34: =[37]Prem_Loss_Comm!F67/1000 -> 16623.03786 | I34: =[37]Plan!P124+[37]Plan!P138 -> 17615.735 | J34: =[37]Prem_Loss_Comm!G67/1000 -> 21782.17805 | K34: =[37]Plan!P125+[37]Plan!P139 -> 21326.49887 | L34: =[37]Prem_Loss_Comm!H67/1000 -> 116.13592 | M34: =[37]Plan!P126+[37]Plan!P140 -> 144.365001 | N34: =[37]Prem_Loss_Comm!P67/1000 -> 356.88495 | O34: =[37]Plan!P127+[37]Plan!P141 -> 815.2320037 | P34: =[37]Prem_Loss_Comm!R67/1000 -> 265.38028 | Q34: =[37]Plan!P128+[37]Plan!P142 -> 720.3922076 | R34: =+[37]Prem_Loss_Comm!S67/1000 -> 142.088 | S34: =+[37]Plan!P129+[37]Plan!P143 -> 163.0295156 | T34: =[37]Prem_Loss_Comm!Q67/1000 -> 10564.67481 | U34: =[37]Plan!P133+[37]Plan!P148 -> 9360.87 | V34: =[37]Prem_Loss_Comm!O67/1000 -> 1894.70331 | W34: =[37]Plan!P152 -> 1592.719 | X34: 0 | Y34: 0 | Z34: 0 | AA34: 0 | AB34: 0 | AC34: 0 | AD34: =+D34+H34+J34+L34+R34+X34+AB34+Z34+N34+P34+T34+V34+F34 -> 111693.5659 | AE34: =+E34+I34+K34+M34+Y34+AC34+AA34+O34+Q34+W34+U34+G34+S34 -> 120385.8109 | AG34: 0 | AH34: 0 | AJ34: 0 | AK34: 0 | AM34: =AD34+AJ34+AG343 -> 111693.5659 | AN34: =AE34+AK34+AH34 -> 120385.8109
B35: Annuity claims and reserves | D35: 0 | E35: 0 | F35: 0 | G35: 0 | H35: 0 | I35: 0 | J35: 0 | K35: 0 | L35: 0 | M35: 0 | N35: 0 | O35: 0 | W35: 0 | X35: 0 | Y35: 0 | Z35: 0 | AA35: 0 | AB35: 0 | AC35: 0 | AD35: =+D35+H35+J35+L35+X35+AB35+Z35 -> 0 | AE35: =+E35+I35+K35+M35+Y35+AC35+AA35 -> 0 | AG35: =[37]Prem_Loss_Comm!J67/1000 -> 17.54566 | AH35: =+[37]Plan!P158 -> 64.96684348 | AJ35: 0 | AK35: 0 | AM35: =AD35+AJ35+AG35 -> 17.54566 | AN35: =AE35+AK35+AH35 -> 64.96684348
A36: Total Incurred Benefits | D36: =SUM(D34:D35) -> 58787.8129 | E36: 65367.68833 | F36: =SUM(F34:F35) -> 1160.6698 | G36: 3279.281 | H36: 16623.03786 | I36: 17615.735 | J36: 21782.17805 | K36: 21326.49887 | L36: 116.13592 | M36: 144.365001 | N36: =SUM(N34:N35) -> 356.88495 | O36: 815.2320037 | P36: 265.38028 | Q36: 720.3922076 | R36: 142.088 | S36: 163.0295156 | T36: 10564.67481 | U36: 9360.87 | V36: 1894.70331 | W36: 1592.719 | X36: 0 | Y36: 0 | Z36: 0 | AA36: 0 | AB36: 0 | AC36: 0 | AD36: 111693.5659 | AE36: =SUM(AE34:AE35) -> 120385.8109 | AG36: =SUM(AG34:AG35) -> 17.54566 | AH36: =SUM(AH34:AH35) -> 64.96684348 | AJ36: =SUM(AJ34:AJ35) -> 0 | AK36: =SUM(AK34:AK35) -> 0 | AM36: =SUM(AM34:AM35)+1 -> 111712.1115 | AN36: =SUM(AN34:AN35) -> 120450.7778
A38: Operating Expenses
B39: Commission expense | D39: =[37]Prem_Loss_Comm!E79/1000-[37]Prem_Loss_Comm!O82/1000 -> 7210.81753 | E39: =[37]Plan!P34+[37]Plan!P47+[37]Plan!P65+[37]Plan!P88 -> 7013.503607 | F39: =[37]Prem_Loss_Comm!T79/1000 -> 731.00267 | G39: =[37]Plan!P35+[37]Plan!P48+[37]Plan!P66 -> 663.6304153 | H39: =[37]Prem_Loss_Comm!F79/1000 -> 3825.30308 | I39: =[37]Plan!P36+[37]Plan!P49+[37]Plan!P67 -> 3808.747679 | J39: =[37]Prem_Loss_Comm!G79/1000 -> 3460.21 | K39: =[37]Plan!P37+[37]Plan!P50+[37]Plan!P68 -> 3362.777942 | L39: =[37]Prem_Loss_Comm!H79/1000 -> 23.7922 | M39: =[37]Plan!P38+[37]Plan!P51+[37]Plan!P69 -> 22.60644602 | N39: =[37]Prem_Loss_Comm!P79/1000 -> 360.32104 | O39: =[37]Plan!P39+[37]Plan!P52+[37]Plan!P70 -> 391.6780172 | P39: =[37]Prem_Loss_Comm!R79/1000 -> 359.47009 | Q39: =[37]Plan!P42+[37]Plan!P55 -> 342.2014687 | R39: =[37]Prem_Loss_Comm!S79/1000 -> 39.63947 | S39: =+[37]Plan!P43+[37]Plan!P56 -> 53.27176987 | T39: =[37]Prem_Loss_Comm!Q79/1000 -> 1656.94472 | U39: =[37]Plan!P44+[37]Plan!P57+[37]Plan!P74 -> 1640.900645 | V39: =[37]Prem_Loss_Comm!O79/1000 -> 3.78812 | W39: =[37]Plan!P60 -> 24.86033703 | X39: =[37]Prem_Loss_Comm!L79/1000 -> 10.26654 | Y39: =[37]Plan!P40+[37]Plan!P53 -> 5.758044958 | Z39: 0 | AA39: =+[37]Plan!P73 -> 43.1298785 | AB39: 0 | AC39: =[37]Plan!P41+[37]Plan!P54 -> 0 | AD39: =+D39+H39+J39+L39+R39+X39+AB39+Z39+N39+P39+T39+V39+F39 -> 17681.55546 | AE39: =+E39+I39+K39+M39+Y39+AC39+AA39+O39+Q39+U39+W39+G39+S39 -> 17373.06625 | AG39: 0 | AH39: 0 | AJ39: 0 | AK39: 0 | AM39: =AD39+AJ39+AG39 -> 17681.55546 | AN39: =AE39+AK39+AH39 -> 17373.06625
B40: General and administrative expense | D40: ='[37]G&A'!F30 -> 12958.97767 | E40: ='[37]G&A'!F7+'[37]G&A'!F8+'[37]G&A'!F9 -> 12206.49 | F40: ='[37]G&A'!G30 -> 1479.89808 | G40: =+'[37]G&A'!G7+'[37]G&A'!G8+'[37]G&A'!G9 -> 1299.098 | H40: ='[37]G&A'!I30-'March 2024'!X40 -> 7181.790929 | I40: ='[37]G&A'!I7+'[37]G&A'!I8+'[37]G&A'!I9 -> 6781.702 | J40: ='[37]G&A'!H30 -> 5375.79995 | K40: ='[37]G&A'!H7+'[37]G&A'!H8+'[37]G&A'!H9 -> 5028.623 | L40: ='[37]G&A'!J30-'March 2024'!AB40 -> 69.26331 | M40: ='[37]G&A'!J7+'[37]G&A'!J8+'[37]G&A'!J9 -> 76.244 | N40: ='[37]G&A'!K30 -> 746.15994 | O40: ='[37]G&A'!K7+'[37]G&A'!K8+'[37]G&A'!K9 -> 707.117 | P40: ='[37]G&A'!M30 -> 723.68395 | Q40: ='[37]G&A'!M7+'[37]G&A'!M8+'[37]G&A'!M9 -> 668.304 | R40: =+'[37]G&A'!N30 -> 201.9152 | S40: =+'[37]G&A'!N7+'[37]G&A'!N8+'[37]G&A'!N9 -> 151.952 | T40: ='[37]G&A'!L30 -> 2368.51947 | U40: ='[37]G&A'!L7+'[37]G&A'!L8+'[37]G&A'!L9 -> 2309.119 | V40: ='[37]G&A'!E30 -> 454.2208 | W40: =+'[37]G&A'!E7+'[37]G&A'!E8+'[37]G&A'!E9 -> 506.977 | X40: =X12*0.05 -> 102.0245915 | Y40: =+'[37]G&A'!R7+'[37]G&A'!R8+'[37]G&A'!R9 -> 375 | Z40: 0 | AA40: 0 | AB40: =AB12*0.05 -> 0 | AC40: =AC12*0.05 -> 0 | AD40: =D40+H40+J40+L40+N40+P40+R40+T40+X40+AB40+Z40+V40+F40 -> 31662.25389 | AE40: =+E40+I40+K40+M40+Y40+AC40+AA40+O40+Q40+U40+W40+G40+S40 -> 30110.626 | AG40: ='[37]G&A'!D30 -> 128.59507 | AH40: ='[37]G&A'!D7+'[37]G&A'!D8+'[37]G&A'!D9 -> 129.324 | AJ40: ='[37]G&A'!O30 -> 1043.54619 | AK40: ='[37]G&A'!O7+'[37]G&A'!O8+'[37]G&A'!O9-AK51 -> 971.7803 | AM40: =AD40+AJ40+AG40 -> 32834.39515 | AN40: =AE40+AK40+AH40 -> 31211.7303
B41: ACA Tax | D41: 0 | E41: 0 | F41: 0 | G41: 0 | H41: 0 | I41: 0 | J41: 0 | K41: 0 | L41: 0 | M41: 0 | N41: 0 | O41: 0 | P41: 0 | Q41: 0 | R41: 0 | S41: 0 | T41: 0 | U41: 0 | V41: 0 | W41: 0 | X41: 0 | Y41: 0 | Z41: 0 | AA41: 0 | AB41: 0 | AC41: 0 | AD41: 0 | AE41: 0 | AG41: 0 | AH41: 0 | AJ41: 0 | AK41: 0 | AM41: 0 | AN41: 0
B42: Premium tax | D42: ='[37]Prem Taxes'!F7 -> 1033.956681 | E42: =[37]Plan!P3+[37]Plan!P16 -> 1042.340094 | F42: ='[37]Prem Taxes'!F8 -> 98.17683264 | G42: =[37]Plan!P4+[37]Plan!P17 -> 90.99634404 | H42: ='[37]Prem Taxes'!F9 -> 321.7391588 | I42: =[37]Plan!P5+[37]Plan!P18 -> 374.4717952 | J42: ='[37]Prem Taxes'!F10 -> 117.857812 | K42: =[37]Plan!P6+[37]Plan!P19 -> 414.5461082 | L42: ='[37]Prem Taxes'!F11 -> 2.621905561 | M42: =[37]Plan!P7+[37]Plan!P20 -> 2.820423265 | N42: ='[37]Prem Taxes'!F12 -> 32.14739789 | O42: =[37]Plan!P8+[37]Plan!P21 -> 34.97259112 | P42: ='[37]Prem Taxes'!F14 -> 25.94028192 | Q42: =[37]Plan!P11+[37]Plan!P24 -> 28.48951211 | R42: ='[37]Prem Taxes'!F15 -> 2.510529116 | S42: =+[37]Plan!P12+[37]Plan!P25 -> 4.097828452 | T42: ='[37]Prem Taxes'!F13 -> 196.3864338 | U42: =[37]Plan!P13+[37]Plan!P26 -> 204.0826179 | V42: ='[37]Prem Taxes'!F16 -> 19.16747693 | W42: =[37]Plan!P29 -> 21.71136101 | X42: 0 | Y42: =[37]Plan!P9+[37]Plan!P22 -> 0 | Z42: 0 | AA42: 0 | AB42: 0 | AC42: =[37]Plan!P10+[37]Plan!P23 -> 0 | AD42: =+D42+H42+J42+L42+X42+AB42+Z42+N42+P42+R42+T42+V42+F42 -> 1850.50451 | AE42: =+E42+I42+K42+M42+Y42+AC42+AA42+O42+Q42+U42+W42+G42+S42 -> 2218.528675 | AG42: 0 | AH42: 0 | AJ42: 0 | AK42: 0 | AM42: =AD42+AJ42+AG42 -> 1850.50451 | AN42: =AE42+AK42+AH42 -> 2218.528675
A43: Total Operating Expenses | D43: =SUM(D39:D42) -> 21203.75188 | E43: 20262.3337 | F43: 2309.077583 | G43: =SUM(G39:G42) -> 2053.724759 | H43: 11328.83317 | I43: 10964.92147 | J43: 8953.867762 | K43: =SUM(K39:K42) -> 8805.94705 | L43: 95.67741556 | M43: 101.6708693 | N43: 1138.628378 | O43: 1133.767608 | P43: 1109.094322 | Q43: 1038.994981 | R43: =SUM(R39:R42) -> 244.0651991 | S43: 209.3215983 | T43: 4221.850624 | U43: 4154.102263 | V43: 477.1763969 | W43: 553.548698 | X43: 112.2911315 | Y43: 380.758045 | Z43: 0 | AA43: 43.1298785 | AB43: 0 | AC43: 0 | AD43: 51194.31386 | AE43: =SUM(AE39:AE42) -> 49702.22093 | AG43: =SUM(AG39:AG42) -> 128.59507 | AH43: =SUM(AH39:AH42) -> 129.324 | AJ43: =SUM(AJ39:AJ42) -> 1043.54619 | AK43: =SUM(AK39:AK42) -> 971.7803 | AM43: =SUM(AM39:AM42) -> 52366.45512 | AN43: =SUM(AN39:AN42)+1 -> 50804.32523
A45: Total Incurred Benefits and Operating Expenses | D45: =+D36+D43 -> 79991.56478 | E45: 85630.02203 | F45: 3469.747383 | G45: =+G36+G43 -> 5333.005759 | H45: 27951.87103 | I45: 28580.65647 | J45: 30736.04581 | K45: 30132.44592 | L45: 211.8133356 | M45: =+M36+M43 -> 246.0358703 | N45: 1495.513328 | O45: 1948.999612 | P45: =+P36+P43 -> 1374.474602 | Q45: =+Q36+Q43 -> 1759.387188 | R45: =+R36+R43 -> 386.1531991 | S45: =+S36+S43 -> 372.3511139 | T45: 14786.52543 | U45: 13514.97226 | V45: 2371.879707 | W45: 2146.267698 | X45: 112.2911315 | Y45: 380.758045 | Z45: 0 | AA45: 43.1298785 | AB45: 0 | AC45: 0 | AD45: 162887.8797 | AE45: =+AE36+AE43 -> 170088.0319 | AG45: =+AG36+AG43 -> 146.14073 | AH45: =+AH36+AH43 -> 194.2908435 | AJ45: =+AJ36+AJ43 -> 1043.54619 | AK45: =+AK36+AK43 -> 971.7803 | AM45: =+AM36+AM43 -> 164078.5667 | AN45: =+AN36+AN43-1 -> 171254.103
A47: Pre-tax Income (Loss) Before TB & C&S Allocation | D47: =D31-D45 -> 6890.504589 | E47: =E31-E45 -> -1281.517033 | F47: =F31-F45 -> 4377.563207 | G47: 1868.456875 | H47: 1799.384193 | I47: 1221.230681 | J47: 4055.803658 | K47: =K31-K45 -> 2708.216987 | L47: 0.8845644388 | M47: =M31-M45 -> -30.32614898 | N47: 1223.715382 | O47: 796.7632712 | P47: =P31-P45 -> 921.9937581 | Q47: 659.7915331 | R47: =R31-R45 -> -141.9632391 | S47: =S31-S45 -> -44.52483782 | T47: 2053.036846 | U47: 2701.491684 | V47: 391.5949231 | W47: 286.2964362 | X47: 552.6931985 | Y47: 316.7284268 | Z47: 0 | AA47: -43.1298785 | AB47: 0 | AC47: 0 | AD47: 22125.21108 | AE47: =AE31-AE45 -> 9159.477997 | AG47: =AG31-AG45 -> 715.01226 | AH47: =AH31-AH45 -> 549.5341826 | AJ47: =AJ31-AJ45 -> 3254.45381 | AK47: =AK31-AK45 -> 2797.42895 | AM47: =AM31-AM45-1 -> 26092.67715 | AN47: =AN31-AN45 -> 12505.44113
A48: C&S Earnings Allocation | D48: ='[37]C&S Allocation'!C25 -> 1987.11138 | E48: ='[37]C&S Allocation'!G25 -> 1708.060162 | F48: ='[37]C&S Allocation'!C26 -> 26.43311937 | G48: ='[37]C&S Allocation'!G26 -> 22.72110089 | H48: ='[37]C&S Allocation'!C27 -> 65.90615902 | I48: ='[37]C&S Allocation'!G27 -> 56.6509184 | J48: ='[37]C&S Allocation'!C28 -> 479.543757 | K48: ='[37]C&S Allocation'!G28 -> 412.2011456 | L48: ='[37]C&S Allocation'!C29 -> 1.738337082 | M48: ='[37]C&S Allocation'!G29 -> 1.494221384 | N48: ='[37]C&S Allocation'!C30 -> 13.98044379 | O48: ='[37]C&S Allocation'!G30 -> 12.01716186 | P48: ='[37]C&S Allocation'!C31 -> 14.98282062 | Q48: ='[37]C&S Allocation'!G31 -> 12.87877432 | R48: 0 | S48: ='[37]C&S Allocation'!E32 -> 0 | T48: ='[37]C&S Allocation'!C32 -> 92.45075242 | U48: ='[37]C&S Allocation'!G32 -> 79.46783896 | V48: ='[37]C&S Allocation'!C33 -> 64.09589985 | W48: ='[37]C&S Allocation'!G33 -> 55.09487499 | X48: 0 | Y48: 0 | Z48: 0 | AA48: 0 | AB48: 0 | AC48: 0 | AD48: =+D48+H48+J48+L48+X48+AB48+Z48+N48+P48+T48+V48+F48 -> 2746.242669 | AE48: =+E48+I48+K48+M48+Y48+AC48+AA48+O48+Q48+U48+W48+G48+S48 -> 2360.586198 | AG48: ='[37]C&S Allocation'!C34 -> 46.42031381 | AH48: ='[37]C&S Allocation'!G34 -> 39.90148188 | AJ48: =-AG48-AD48 -> -2792.662983 | AK48: =-AE48-AH48 -> -2400.48768 | AM48: =AM32-AM46 -> 0 | AN48: 0
A49: Pre-tax Income (Loss) Before Total Blue Costs | D49: =D47+D48 -> 8877.615968 | E49: =E47+E48 -> 426.5431291 | F49: =F47+F48 -> 4403.996327 | G49: 1891.177976 | H49: 1865.290352 | I49: 1277.8816 | J49: 4535.347415 | K49: 3120.418133 | L49: 2.622901521 | M49: -28.83192759 | N49: 1237.695826 | O49: 808.7804331 | P49: 936.9765787 | Q49: 672.6703074 | R49: -141.9632391 | S49: -44.52483782 | T49: 2145.487599 | U49: 2780.959523 | V49: 455.6908229 | W49: 341.3913112 | X49: 552.6931985 | Y49: 316.7284268 | Z49: 0 | AA49: -43.1298785 | AB49: 0 | AC49: 0 | AD49: 24871.45375 | AE49: =AE47+AE48 -> 11520.06419 | AG49: =AG47+AG48 -> 761.4325738 | AH49: 589.4356645 | AJ49: =AJ47+AJ48 -> 461.7908272 | AK49: =AK47+AK48 -> 396.9412701 | AM49: =AM47+AM48 -> 26092.67715 | AN49: =AN47+AN48 -> 12505.44113
A51: Total Blue Costs | AJ51: =+'[37]G&A'!P31 -> 1580.92895 | AK51: =+'[37]G&A'!Q7+'[37]G&A'!Q8+'[37]G&A'!Q9 -> 1353.3397 | AM51: =AJ51 -> 1580.92895 | AN51: =SUM(AK51) -> 1353.3397
A53: Pre-tax Income (Loss) | D53: =D49-D51 -> 8877.615968 | E53: =E49-E51 -> 426.5431291 | F53: =F49-F51 -> 4403.996327 | G53: 1891.177976 | H53: 1865.290352 | I53: 1277.8816 | J53: 4535.347415 | K53: 3120.418133 | L53: 2.622901521 | M53: -28.83192759 | N53: 1237.695826 | O53: 808.7804331 | P53: 936.9765787 | Q53: 672.6703074 | R53: -141.9632391 | S53: -44.52483782 | T53: 2145.487599 | U53: 2780.959523 | V53: =V49-V51 -> 455.6908229 | W53: 341.3913112 | X53: 552.6931985 | Y53: 316.7284268 | Z53: 0 | AA53: -43.1298785 | AB53: 0 | AC53: 0 | AD53: =AD49-AD51 -> 24871.45375 | AE53: =AE49-AE51 -> 11520.06419 | AF53: =AF31-AF45 -> 0 | AG53: =AG49-AG51 -> 761.4325738 | AH53: 589.4356645 | AI53: =AI31-AI45 -> 0 | AJ53: =AJ49-AJ51 -> -1119.138123 | AK53: =AK49-AK51 -> -956.3984299 | AL53: =AL31-AL45 -> 0 | AM53: =AM49-AM51 -> 24511.7482 | AN53: =AN49-AN51 -> 11152.10143
A55: Insurance loss ratio (insurance benefit expenses / insurance premiums) | D55: =+D34/D11 -> 0.6915239207 | E55: =+E34/E11 -> 0.7901767165 | F55: 0.1479066983 | G55: 0.4612800354 | H55: 0.5686416103 | I55: 0.6021318852 | J55: 0.7126446297 | K55: 0.7356695137 | L55: 0.548592688 | M55: 0.6705310997 | N55: 0.1312449183 | O55: 0.2983756511 | P55: 0.1155601726 | Q55: =+Q34/Q11 -> 0.2983774527 | R55: =+R34/R11 -> 0.581874865 | S55: 0.4973046016 | T55: 0.6273722936 | U55: 0.5779373237 | V55: 1.320834311 | W55: 0.961000075 | AD55: 0.6331724627 | AE55: 0.701453138 | AM55: =+AM34/AM11 -> 0.6331724627 | AN55: =+(AN34)/AN11 -> 0.701453138
A57: G&A Expense ratio (G&A expenses / insurance premiums incl. ASO) | D57: =+D40/(D11+D12) -> 0.152189606 | E57: =+E40/(E11+E12) -> 0.1475543106 | F57: 0.1885866582 | G57: 0.1827376097 | H57: 0.24567502 | I57: 0.231808608 | J57: 0.1758793338 | K57: 0.1734651646 | L57: 0.3271799579 | M57: 0.3541299678 | N57: 0.2744013173 | O57: 0.2588054619 | P57: 0.315129075 | Q57: 0.2768031678 | R57: 0.826877567 | S57: 0.4635137909 | T57: 0.1406520805 | U57: 0.1425643188 | V57: 0.316646102 | W57: 0.3058950983 | X57: 0.05 | Y57: 0.1480207909 | AD57: 0.1772983211 | AE57: 0.1728936895 | AM57: =+AM40/(AM11+AM12) -> 0.1838619309 | AN57: =+AN40/(AN11+AN12) -> 0.1792161746
A59: Pre-tax Margin (Pre-tax income (loss) / total premiums) | D59: =D49/(D11+D12+D29) -> 0.1042717621 | E59: =E49/(E11+E12+E29) -> 0.0051561323 | F59: 0.5612109112 | G59: 0.2660225347 | H59: 0.0638079344 | I59: 0.04367988373 | J59: 0.1483823597 | K59: 0.1076405698 | L59: 0.0123898325 | M59: -0.1339154503 | N59: 0.4551642976 | O59: 0.2960143704 | P59: 0.4080076151 | Q59: 0.2786116378 | R59: -0.5813639476 | S59: -0.1358183924 | T59: 0.1274075634 | U59: 0.1716956121 | V59: 0.3176708834 | W59: 0.2059855352 | X59: 0.8311371766 | Y59: 0.4540997419 | AD59: =AD49/(AD11+AD12+AD29) -> 0.1403618175 | AE59: 0.06685237505 | AF59: =+AF47/AF14 ->  | AM59: =AM49/(AM11+AM12+AM29) -> 0.1472537804 | AN59: =AN49/(AN11+AN12+AN29) -> 0.07257064079

Sheet March 2025
A1: DEARBORN LIFE INSURANCE COMPANY
A2: MARCH 2025
A3: INCOME STATEMENT BY LINE OF BUSINESS
A4: $'(000)'s
D5: Insured | AK5: Annuities | AN5: C&S | AO5: C&S | AQ5: Total All Lines | AR5: Total All Lines
D6: Life | F6: ADD | H6: STD | J6: LTD | L6: Dental | N6: Critical Illness | P6: Accident | R6: Hospital Indemnity | T6: Vision | V6: Individual Life | X6: ASO STD | Z6: ASO LIFE | AB6: ASO VIS | AD6: LTD ASO | AF6: DENTAL ASO | AH6: TOTAL INSURED | AK6: Annuities | AL6: Annuities | AQ6: of Business | AR6: of Business
D7: Actual | E7: Plan | F7: Actual | G7: Plan | H7: Actual | I7: Plan | J7: Actual | K7: Plan | L7: Actual | M7: Plan | N7: Actual | O7: Plan | P7: Actual | Q7: Plan | R7: Actual | S7: Plan | T7: Actual | U7: Plan | V7: Actual | W7: Plan | X7: Actual | Y7: Plan | Z7: Actual | AA7: Plan | AB7: Actual | AC7: Plan | AD7: Actual | AE7: Plan | AF7: Actual | AG7: Plan | AH7: Actual | AI7: Plan | AK7: Actual | AL7: Plan | AN7: Actual | AO7: Plan | AQ7: Actual | AR7: Plan
A9: Revenues
A10: Premiums
B11: Insurance premiums | D11: =(-[38]Prem_Loss_Comm!E33/1000) -> 86360.18413 | E11: =+'[38]DLIC 2025.03 Plan Cumulative'!D10 -> 86870.92619 | F11: =-[38]Prem_Loss_Comm!V33/1000 -> 7892.26647 | G11: =+'[38]DLIC 2025.03 Plan Cumulative'!E10 -> 8005.238281 | H11: =-[38]Prem_Loss_Comm!F33/1000 -> 31501.51 | I11: =+'[38]DLIC 2025.03 Plan Cumulative'!F10 -> 32123.15699 | J11: =-[38]Prem_Loss_Comm!G33/1000 -> 30667.17432 | K11: =+'[38]DLIC 2025.03 Plan Cumulative'!H10 -> 31007.22935 | L11: =-[38]Prem_Loss_Comm!H33/1000 -> 163.05224 | M11: =+'[38]DLIC 2025.03 Plan Cumulative'!I10 -> 153.6674052 | N11: =-[38]Prem_Loss_Comm!R33/1000 -> 3441.34399 | O11: =+'[38]DLIC 2025.03 Plan Cumulative'!K10 -> 3406.174012 | P11: =-[38]Prem_Loss_Comm!T33/1000 -> 2739.55721 | Q11: =+'[38]DLIC 2025.03 Plan Cumulative'!L10 -> 2928.53443 | R11: =-[38]Prem_Loss_Comm!U33/1000 -> 1151.54138 | S11: =+'[38]DLIC 2025.03 Plan Cumulative'!M10 -> 1201.074996 | T11: =-[38]Prem_Loss_Comm!S33/1000 -> 19082.20534 | U11: =+'[38]DLIC 2025.03 Plan Cumulative'!N10 -> 20148.63628 | V11: =-[38]Prem_Loss_Comm!Q33/1000 -> 1394.03167 | W11: =+'[38]DLIC 2025.03 Plan Cumulative'!P10 -> 1228.4625 | X11: 0 | Y11: =+'[38]DLIC 2025.03 Plan Cumulative'!G10 -> 0 | Z11: 0 | AA11: 0 | AC11: =+'[38]DLIC 2025.03 Plan Cumulative'!O10 -> 0 | AD11: 0 | AE11: 0 | AF11: =+[38]Prem_Loss_Comm!K33 -> 0 | AG11: =+'[38]DLIC 2025.03 Plan Cumulative'!J10 -> 0 | AH11: =+D11+H11+J11+L11+X11+Z11+AB11+AF11+AD11+N11+P11+T11+V11+F11+R11 -> 184392.8667 | AI11: =+E11+I11+K11+M11+Y11+AA11+AC11+AG11+AE11+O11+Q11+U11+W11+G11+S11 -> 187073.1004 | AK11: 0 | AL11: =+'[38]DLIC 2025.03 Plan Cumulative'!S10 -> 0 | AN11: 0 | AO11: =+'[38]DLIC 2025.03 Plan Cumulative'!U10 -> 0 | AQ11: =AH11+AN11+AK11 -> 184392.8667 | AR11: =AI11+AO11+AL11 -> 187073.1004
B12: ASO claims and fees | D12: =(-[38]Prem_Loss_Comm!E38/1000) -> 0 | E12: =+'[38]DLIC 2025.03 Plan Cumulative'!D11 -> 0 | F12: =-[38]Prem_Loss_Comm!G38/1000 -> 0 | G12: =+'[38]DLIC 2025.03 Plan Cumulative'!E11 -> 0 | H12: =+[38]Prem_Loss_Comm!F38 -> 0 | I12: =+'[38]DLIC 2025.03 Plan Cumulative'!F11 -> 0 | J12: =+[38]Prem_Loss_Comm!G38 -> 0 | K12: =+'[38]DLIC 2025.03 Plan Cumulative'!H11 -> 0 | L12: =+[38]Prem_Loss_Comm!H38 -> 0 | M12: =+'[38]DLIC 2025.03 Plan Cumulative'!I11 -> 0 | N12: =+[38]Prem_Loss_Comm!R38 -> 0 | O12: =+'[38]DLIC 2025.03 Plan Cumulative'!K11 -> 0 | P12: =+[38]Prem_Loss_Comm!T38 -> 0 | Q12: =+'[38]DLIC 2025.03 Plan Cumulative'!L11 -> 0 | R12: =+[38]Prem_Loss_Comm!U38 -> 0 | S12: =+'[38]DLIC 2025.03 Plan Cumulative'!M11 -> 0 | T12: =+[38]Prem_Loss_Comm!S38 -> 0 | U12: =+'[38]DLIC 2025.03 Plan Cumulative'!N11 -> 0 | V12: =+[38]Prem_Loss_Comm!Q38 -> 0 | W12: =+'[38]DLIC 2025.03 Plan Cumulative'!P11 -> 0 | X12: =-(([38]Prem_Loss_Comm!L33+[38]Prem_Loss_Comm!L38)/1000+[38]Prem_Loss_Comm!F38/1000+[38]Prem_Loss_Comm!J38/1000) -> 1920.31469 | Y12: =+'[38]DLIC 2025.03 Plan Cumulative'!G11 -> 2731.412678 | Z12: =-(([38]Prem_Loss_Comm!M33+[38]Prem_Loss_Comm!M38)/1000+([38]Prem_Loss_Comm!E38/1000)) -> 118.75048 | AA12: 0 | AB12: =-[38]Prem_Loss_Comm!N33/1000 -> 71.41852 | AC12: =+'[38]DLIC 2025.03 Plan Cumulative'!O11 -> 0 | AD12: 0 | AE12: 0 | AF12: =+[38]Prem_Loss_Comm!K38 -> 0 | AG12: =+'[38]DLIC 2025.03 Plan Cumulative'!J11 -> 0 | AH12: =+D12+H12+J12+L12+X12+Z12+AB12+AF12+AD12+N12+P12+T12+V12+F12+R12 -> 2110.48369 | AI12: 2731.412678 | AK12: 0 | AL12: =+'[38]DLIC 2025.03 Plan Cumulative'!S11 -> 0 | AN12: 0 | AO12: =+'[38]DLIC 2025.03 Plan Cumulative'!U11 -> 0 | AQ12: =AH12+AN12+AK12 -> 2110.48369 | AR12: 2731.412678
B13: Annuity premiums | D13: 0 | E13: =+'[38]DLIC 2025.03 Plan Cumulative'!D12 -> 0 | F13: 0 | G13: =+'[38]DLIC 2025.03 Plan Cumulative'!E12 -> 0 | H13: 0 | I13: =+'[38]DLIC 2025.03 Plan Cumulative'!F12 -> 0 | J13: 0 | K13: =+'[38]DLIC 2025.03 Plan Cumulative'!H12 -> 0 | L13: =+'[38]DLIC 2025.03 Plan Cumulative'!I12 -> 0 | M13: =+'[38]DLIC 2025.03 Plan Cumulative'!I12 -> 0 | N13: 0 | O13: =+'[38]DLIC 2025.03 Plan Cumulative'!K12 -> 0 | P13: 0 | Q13: =+'[38]DLIC 2025.03 Plan Cumulative'!L12 -> 0 | R13: 0 | S13: =+'[38]DLIC 2025.03 Plan Cumulative'!M12 -> 0 | T13: 0 | U13: =+'[38]DLIC 2025.03 Plan Cumulative'!N12 -> 0 | W13: =+'[38]DLIC 2025.03 Plan Cumulative'!P12 -> 0 | X13: 0 | Y13: =+'[38]DLIC 2025.03 Plan Cumulative'!G12 -> 0 | Z13: 0 | AA13: 0 | AB13: 0 | AC13: =+'[38]DLIC 2025.03 Plan Cumulative'!O12 -> 0 | AD13: 0 | AE13: 0 | AF13: 0 | AG13: =+'[38]DLIC 2025.03 Plan Cumulative'!J12 -> 0 | AH13: 0 | AI13: 0 | AK13: =-[38]Prem_Loss_Comm!J33/1000 -> 0 | AL13: =+'[38]DLIC 2025.03 Plan Cumulative'!S12 -> 0 | AN13: 0 | AO13: =+'[38]DLIC 2025.03 Plan Cumulative'!U12 -> 0 | AQ13: 0 | AR13: 0
B14: Total premiums | D14: =SUM(D11:D13) -> 86360.18413 | E14: 86870.92619 | F14: 7892.26647 | G14: 8005.238281 | H14: 31501.51 | I14: 32123.15699 | J14: 30667.17432 | K14: 31007.22935 | L14: 163.05224 | M14: 153.6674052 | N14: 3441.34399 | O14: =SUM(O11:O13) -> 3406.174012 | P14: =SUM(P11:P13) -> 2739.55721 | Q14: 2928.53443 | R14: 1151.54138 | S14: 1201.074996 | T14: 19082.20534 | U14: 20148.63628 | V14: =SUM(V11:V13) -> 1394.03167 | W14: =SUM(W11:W13) -> 1228.4625 | X14: 1920.31469 | Y14: =SUM(Y11:Y13) -> 2731.412678 | Z14: =SUM(Z11:Z13) -> 118.75048 | AA14: =SUM(AA11:AA13) -> 0 | AB14: =SUM(AB11:AB13) -> 71.41852 | AC14: =SUM(AC11:AC13) -> 0 | AD14: 0 | AE14: 0 | AF14: 0 | AG14: 0 | AH14: =SUM(AH11:AH13) -> 186503.3504 | AI14: =SUM(AI11:AI13) -> 189804.5131 | AK14: =SUM(AK11:AK13) -> 0 | AL14: 0 | AN14: =SUM(AN11:AN13) -> 0 | AO14: 0 | AQ14: =SUM(AQ11:AQ13) -> 186503.3504 | AR14: =SUM(AR11:AR13) -> 189804.5131
A16: Net investment income | D16: ='[38]DNLStat Insured Allocation'!E10+'[38]DNLStat Insured Allocation'!E16 -> 1648 | E16: =+'[38]DLIC 2025.03 Plan Cumulative'!D15 -> 1702.633832 | F16: 0 | G16: =+'[38]DLIC 2025.03 Plan Cumulative'!E15 -> 82.30550269 | H16: ='[38]DNLStat Insured Allocation'!E11+'[38]DNLStat Insured Allocation'!E17 -> 216 | I16: =+'[38]DLIC 2025.03 Plan Cumulative'!F15 -> 236.8687564 | J16: ='[38]DNLStat Insured Allocation'!E12+'[38]DNLStat Insured Allocation'!E18 -> 4627 | K16: =+'[38]DLIC 2025.03 Plan Cumulative'!H15 -> 4686.4547 | L16: ='[38]DNLStat Insured Allocation'!E13+'[38]DNLStat Insured Allocation'!E19 -> 0 | M16: =+'[38]DLIC 2025.03 Plan Cumulative'!I15 -> 0.4142251746 | N16: 0 | O16: =+'[38]DLIC 2025.03 Plan Cumulative'!K15 -> 15.22721915 | P16: 0 | Q16: =+'[38]DLIC 2025.03 Plan Cumulative'!L15 -> 8.633282072 | R16: 0 | S16: =+'[38]DLIC 2025.03 Plan Cumulative'!M15 -> 17.5348135 | T16: 0 | U16: =+'[38]DLIC 2025.03 Plan Cumulative'!N15 -> 41.97337725 | V16: ='[38]DNLStat Insured Allocation'!E21 -> 1378 | W16: =+'[38]DLIC 2025.03 Plan Cumulative'!P15 -> 784.1476421 | X16: 0 | Y16: =+'[38]DLIC 2025.03 Plan Cumulative'!G15 -> 0 | Z16: 0 | AA16: 0 | AB16: 0 | AC16: =+'[38]DLIC 2025.03 Plan Cumulative'!O15 -> 0 | AD16: 0 | AE16: 0 | AF16: 0 | AG16: =+'[38]DLIC 2025.03 Plan Cumulative'!J15 -> 0 | AH16: =+D16+H16+J16+L16+X16+Z16+AB16+AF16+AD16+N16+P16+R16+T16+V16+F16 -> 7869 | AI16: =+E16+G16+I16+K16+M16+O16+Q16+S16+U16+W16+Y16+AA16+AC16+AE16+AG16 -> 7576.19335 | AK16: =+'[38]DNLStat Insured Allocation'!E22 -> 94 | AL16: =+'[38]DLIC 2025.03 Plan Cumulative'!S15 -> 72.81815125 | AN16: ='[38]DNL Stat LOB Actual'!F38 -> 3944 | AO16: =+'[38]DLIC 2025.03 Plan Cumulative'!U15 -> 4063.552921 | AQ16: =AH16+AN16+AK16 -> 11907 | AR16: =AI16+AO16+AL16 -> 11712.56442
A17: Realized capital gains (losses) | D17: =+'[38]DNLStat Insured Allocation'!F10+'[38]DNLStat Insured Allocation'!F16 -> 0 | E17: =+'[38]DLIC 2025.03 Plan Cumulative'!D16 -> 0 | F17: ='[38]DNLStat Insured Allocation'!H10+'[38]DNLStat Insured Allocation'!H16 -> 0 | G17: =+'[38]DLIC 2025.03 Plan Cumulative'!E16 -> 0 | H17: =+'[38]DNLStat Insured Allocation'!F11+'[38]DNLStat Insured Allocation'!F17 -> 0 | I17: =+'[38]DLIC 2025.03 Plan Cumulative'!F16 -> 0 | J17: =+'[38]DNLStat Insured Allocation'!F12+'[38]DNLStat Insured Allocation'!F18 -> 0 | K17: =+'[38]DLIC 2025.03 Plan Cumulative'!H16 -> 0 | L17: ='[38]DNLStat Insured Allocation'!F13+'[38]DNLStat Insured Allocation'!F19 -> 0 | M17: =+'[38]DLIC 2025.03 Plan Cumulative'!I16 -> 0 | N17: ='[38]DNLStat Insured Allocation'!H13+'[38]DNLStat Insured Allocation'!H19 -> 0 | O17: =+'[38]DLIC 2025.03 Plan Cumulative'!K16 -> 0 | P17: 0 | Q17: =+'[38]DLIC 2025.03 Plan Cumulative'!L16 -> 0 | R17: 0 | S17: =+'[38]DLIC 2025.03 Plan Cumulative'!M16 -> 0 | T17: 0 | U17: =+'[38]DLIC 2025.03 Plan Cumulative'!N16 -> 0 | V17: =+'[38]DNLStat Insured Allocation'!F21 -> 0 | W17: =+'[38]DLIC 2025.03 Plan Cumulative'!P16 -> 0 | X17: 0 | Y17: =+'[38]DLIC 2025.03 Plan Cumulative'!G16 -> 0 | Z17: 0 | AA17: 0 | AB17: 0 | AC17: =+'[38]DLIC 2025.03 Plan Cumulative'!O16 -> 0 | AD17: 0 | AE17: 0 | AF17: 0 | AG17: =+'[38]DLIC 2025.03 Plan Cumulative'!K16 -> 0 | AH17: =+D17+H17+J17+L17+X17+Z17+AB17+AF17+AD17+N17+P17+R17+T17+V17+F17 -> 0 | AI17: =+E17+G17+I17+K17+M17+O17+Q17+S17+U17+W17+Y17+AA17+AC17+AE17+AG17 -> 0 | AK17: =+'[38]DNLStat Insured Allocation'!F22 -> 0 | AL17: =+'[38]DLIC 2025.03 Plan Cumulative'!S16 -> 0 | AN17: ='[38]DNL Stat LOB Actual'!F51 -> 0 | AO17: =+'[38]DLIC 2025.03 Plan Cumulative'!U16 -> 0 | AQ17: =AH17+AN17+AK17 -> 0 | AR17: 0
A18: Realized capital gains (losses) on derivatives | D18: 0 | F18: 0 | H18: 0 | J18: 0 | L18: 0 | N18: 0 | P18: 0 | R18: 0 | T18: 0 | X18: 0 | Z18: 0 | AA18: 0 | AB18: 0 | AD18: 0 | AE18: 0 | AF18: 0 | AH18: 0 | AI18: 0 | AK18: 0 | AN18: 0 | AQ18: 0 | AR18: 0
A19: Realized capital losses - impairments | D19: ='[38]DNLStat Insured Allocation'!G10+'[38]DNLStat Insured Allocation'!G16-1 -> -1 | E19: =+'[38]DLIC 2025.03 Plan Cumulative'!D18 -> -27.9424579 | F19: ='[38]DNLStat Insured Allocation'!I10+'[38]DNLStat Insured Allocation'!I16 -> 0 | G19: =+'[38]DLIC 2025.03 Plan Cumulative'!E18 -> -1.340455967 | H19: ='[38]DNLStat Insured Allocation'!G17+'[38]DNLStat Insured Allocation'!G11 -> 0 | I19: =+'[38]DLIC 2025.03 Plan Cumulative'!F18 -> -3.857726731 | J19: ='[38]DNLStat Insured Allocation'!G12+'[38]DNLStat Insured Allocation'!G18 -> 1 | K19: =+'[38]DLIC 2025.03 Plan Cumulative'!H18 -> -76.53799957 | L19: 0 | M19: =+'[38]DLIC 2025.03 Plan Cumulative'!I18 -> -0.006746214879 | N19: 0 | O19: =+'[38]DLIC 2025.03 Plan Cumulative'!K18 -> -0.2479957731 | P19: 0 | Q19: =+'[38]DLIC 2025.03 Plan Cumulative'!L18 -> -0.1406046265 | R19: 0 | S19: =+'[38]DLIC 2025.03 Plan Cumulative'!M18 -> -0.2855780551 | T19: 0 | U19: =+'[38]DLIC 2025.03 Plan Cumulative'!N18 -> -0.6835929815 | V19: ='[38]DNLStat Insured Allocation'!G21 -> 0 | W19: =+'[38]DLIC 2025.03 Plan Cumulative'!P18 -> -12.7709005 | X19: 0 | Y19: =+'[38]DLIC 2025.03 Plan Cumulative'!G18 -> 0 | Z19: 0 | AA19: 0 | AB19: 0 | AC19: =+'[38]DLIC 2025.03 Plan Cumulative'!O18 -> 0 | AD19: 0 | AE19: 0 | AF19: 0 | AG19: =+'[38]DLIC 2025.03 Plan Cumulative'!K18 -> -0.2479957731 | AH19: =+D19+H19+J19+L19+X19+Z19+AB19+AF19+AD19+N19+P19+R19+T19+V19+F19 -> 0 | AI19: -124.0620541 | AK19: =+'[38]DNLStat Insured Allocation'!G22 -> 0 | AL19: =+'[38]DLIC 2025.03 Plan Cumulative'!S18 -> -1.18594167 | AN19: =+'[38]DNL Stat LOB Actual'!F64 -> 0 | AO19: =+'[38]DLIC 2025.03 Plan Cumulative'!U18 -> -75 | AQ19: 0 | AR19: -200.2479958
A21: Other income | AH21: 0 | AI21: 0
B22: Dental TPA fees | AH22: 0 | AI22: 0
B23: Dental network leasing fees | AH23: 0 | AI23: 0
B24: Other revenues | D24: =-'[38]Other Income'!C22/1000 -> 0.19116 | E24: =+'[38]DLIC 2025.03 Plan Cumulative'!D23 -> 25 | F24: 0 | G24: =+'[38]DLIC 2025.03 Plan Cumulative'!E23 -> 0 | H24: =-'[38]Other Income'!D22/1000 -> 324.72019 | I24: =+'[38]DLIC 2025.03 Plan Cumulative'!F23 -> 325 | J24: =-'[38]Other Income'!E22/1000 -> 0.37402 | K24: =+'[38]DLIC 2025.03 Plan Cumulative'!H23 -> 0 | L24: 0 | M24: =+'[38]DLIC 2025.03 Plan Cumulative'!I23 -> 0 | N24: 0 | O24: =+'[38]DLIC 2025.03 Plan Cumulative'!K23 -> 0 | P24: 0 | Q24: =+'[38]DLIC 2025.03 Plan Cumulative'!L23 -> 0 | R24: 0 | S24: =+'[38]DLIC 2025.03 Plan Cumulative'!M23 -> 0 | T24: 0 | U24: =+'[38]DLIC 2025.03 Plan Cumulative'!N23 -> 0 | V24: 0 | W24: =+'[38]DLIC 2025.03 Plan Cumulative'!P23 -> 0 | X24: 0 | Y24: =+'[38]DLIC 2025.03 Plan Cumulative'!G23 -> 0 | Z24: 0 | AA24: 0 | AB24: 0 | AC24: =+'[38]DLIC 2025.03 Plan Cumulative'!O23 -> 0 | AD24: 0 | AE24: 0 | AF24: 0 | AG24: =+'[38]DLIC 2025.03 Plan Cumulative'!J23 -> 0 | AH24: 325.28537 | AI24: 350 | AK24: =-'[38]Other Income'!H22/1000 -> 678.45999 | AL24: =+'[38]DLIC 2025.03 Plan Cumulative'!S23 -> 759.2549544 | AN24: 0 | AO24: =+'[38]DLIC 2025.03 Plan Cumulative'!U23 -> 0 | AQ24: =AH24+AN24+AK24 -> 1003.74536 | AR24: =AI24+AO24+AL24 -> 1109.254954
B25: Total other income | D25: =SUM(D24:D24) -> 0.19116 | E25: 25 | F25: 0 | G25: 0 | H25: 324.72019 | I25: 325 | J25: 0.37402 | K25: 0 | L25: 0 | M25: 0 | N25: 0 | O25: 0 | P25: 0 | Q25: 0 | R25: =SUM(R24:R24) -> 0 | S25: 0 | T25: 0 | U25: 0 | V25: 0 | W25: 0 | X25: 0 | Y25: 0 | Z25: =SUM(Z24:Z24) -> 0 | AA25: 0 | AB25: 0 | AC25: 0 | AD25: 0 | AE25: 0 | AF25: 0 | AG25: 0 | AH25: 325.28537 | AI25: 350 | AK25: =SUM(AK24:AK24) -> 678.45999 | AL25: =SUM(AL24:AL24) -> 759.2549544 | AN25: =SUM(AN24:AN24) -> 0 | AO25: =SUM(AO24:AO24) -> 0 | AQ25: =SUM(AQ24:AQ24) -> 1003.74536 | AR25: =SUM(AR24:AR24) -> 1109.254954
A27: Gross Revenues | D27: =+D25+D19+D18+D16+D14+D17 -> 88007.37529 | E27: 88570.61756 | F27: 7892.26647 | G27: 8086.203328 | H27: 32042.23019 | I27: 32681.16802 | J27: 35295.54834 | K27: 35617.14605 | L27: 163.05224 | M27: 154.0748842 | N27: 3441.34399 | O27: 3421.153235 | P27: 2739.55721 | Q27: 2937.027108 | R27: 1151.54138 | S27: 1218.324231 | T27: 19082.20534 | U27: 20189.92606 | V27: 2772.03167 | W27: 1999.839242 | X27: 1920.31469 | Y27: 2731.412678 | Z27: 118.75048 | AA27: 0 | AB27: 71.41852 | AC27: 0 | AD27: 0 | AE27: 0 | AF27: 0 | AG27: -0.2479957731 | AH27: 194697.6358 | AI27: 197606.6444 | AK27: =+AK25+AK19+AK18+AK16+AK14+AK17 -> 772.45999 | AL27: =+AL25+AL19+AL18+AL16+AL14+AL17 -> 830.887164 | AN27: =+AN25+AN19+AN18+AN16+AN14+AN17 -> 3944 | AO27: =+AO25+AO19+AO18+AO16+AO14+AO17 -> 3988.552921 | AQ27: =+AQ25+AQ19+AQ18+AQ16+AQ14+AQ17 -> 199414.0958 | AR27: =+AR25+AR19+AR18+AR16+AR14+AR17 -> 202426.0845
A29: Less: ASO claims | D29: =-[38]Prem_Loss_Comm!E42/1000 -> 0 | E29: =+'[38]DLIC 2025.03 Plan Cumulative'!D28 -> 0 | F29: 0 | G29: =+'[38]DLIC 2025.03 Plan Cumulative'!E28 -> 0 | H29: 0 | I29: =+'[38]DLIC 2025.03 Plan Cumulative'!F28 -> 0 | J29: 0 | K29: =+'[38]DLIC 2025.03 Plan Cumulative'!H28 -> 0 | L29: 0 | M29: =+'[38]DLIC 2025.03 Plan Cumulative'!I28 -> 0 | N29: 0 | O29: =+'[38]DLIC 2025.03 Plan Cumulative'!K28 -> 0 | P29: 0 | Q29: =+'[38]DLIC 2025.03 Plan Cumulative'!L28 -> 0 | R29: 0 | S29: =+'[38]DLIC 2025.03 Plan Cumulative'!M28 -> 0 | T29: 0 | U29: =+'[38]DLIC 2025.03 Plan Cumulative'!N28 -> 0 | V29: 0 | W29: =+'[38]DLIC 2025.03 Plan Cumulative'!P28 -> 0 | X29: =(-[38]Prem_Loss_Comm!L67/1000) -> -1222.40645 | Y29: =+'[38]DLIC 2025.03 Plan Cumulative'!G28 -> -1855.612213 | Z29: =(-[38]Prem_Loss_Comm!M67/1000) -> -15 | AA29: 0 | AB29: =(-[38]Prem_Loss_Comm!N67/1000) -> -71.41852 | AC29: =+'[38]DLIC 2025.03 Plan Cumulative'!O28 -> 0 | AD29: =-[38]Prem_Loss_Comm!O71/1000*0.666 -> 0 | AE29: 0 | AF29: =-[38]Prem_Loss_Comm!K67/1000 -> 0 | AG29: =+'[38]DLIC 2025.03 Plan Cumulative'!J28 -> 0 | AH29: =+D29+H29+J29+L29+X29+Z29+AB29+AF29+AD29+N29+P29+R29+T29+V29+F29 -> -1308.82497 | AI29: =+E29+G29+I29+K29+M29+O29+Q29+S29+U29+W29+Y29+AA29+AC29+AE29+AG29 -> -1855.612213 | AK29: 0 | AL29: =+'[38]DLIC 2025.03 Plan Cumulative'!S28 -> 0 | AN29: 0 | AO29: =+'[38]DLIC 2025.03 Plan Cumulative'!U28 -> 0 | AQ29: =AH29+AN29+AK29 -> -1308.82497 | AR29: =AI29+AO29+AL29 -> -1855.612213
A31: Net Revenues | D31: =SUM(D27:D30) -> 88007.37529 | E31: =SUM(E27:E30) -> 88570.61756 | F31: =SUM(F27:F30) -> 7892.26647 | G31: =SUM(G27:G30) -> 8086.203328 | H31: 32042.23019 | I31: 32681.16802 | J31: 35295.54834 | K31: 35617.14605 | L31: 163.05224 | M31: 154.0748842 | N31: 3441.34399 | O31: 3421.153235 | P31: 2739.55721 | Q31: 2937.027108 | R31: 1151.54138 | S31: 1218.324231 | T31: 19082.20534 | U31: 20189.92606 | V31: 2772.03167 | W31: 1999.839242 | X31: 697.90824 | Y31: 875.8004643 | Z31: 103.75048 | AA31: 0 | AB31: 0 | AC31: 0 | AD31: =SUM(AD27:AD30) -> 0 | AE31: 0 | AF31: 0 | AG31: -0.2479957731 | AH31: 193388.8108 | AI31: =SUM(AI27:AI30) -> 195751.0322 | AK31: =SUM(AK27:AK30) -> 772.45999 | AL31: 830.887164 | AN31: =SUM(AN27:AN30) -> 3944 | AO31: =SUM(AO27:AO30) -> 3988.552921 | AQ31: =SUM(AQ27:AQ30) -> 198105.2708 | AR31: =SUM(AR27:AR30)+1 -> 200571.4723
A33: Incurred Benefits
B34: Insurance claims and reserves | D34: =(+[38]Prem_Loss_Comm!E67/1000)-([38]Prem_Loss_Comm!E42/1000) -> 66497.23836 | E34: =+'[38]DLIC 2025.03 Plan Cumulative'!D33-1 -> 64935.07842 | F34: =[38]Prem_Loss_Comm!V67/1000 -> 2315.83048 | G34: =+'[38]DLIC 2025.03 Plan Cumulative'!E33 -> 2662.712133 | H34: =[38]Prem_Loss_Comm!F67/1000 -> 17231.96851 | I34: =+'[38]DLIC 2025.03 Plan Cumulative'!F33 -> 18077.54539 | J34: =[38]Prem_Loss_Comm!G67/1000 -> 21348.13444 | K34: =+'[38]DLIC 2025.03 Plan Cumulative'!H33 -> 22848.51912 | L34: =[38]Prem_Loss_Comm!H67/1000 -> 91.78386 | M34: =+'[38]DLIC 2025.03 Plan Cumulative'!I33 -> 112.047114 | N34: =[38]Prem_Loss_Comm!R67/1000 -> 925.51898 | O34: =+'[38]DLIC 2025.03 Plan Cumulative'!K33 -> 1187.35406 | P34: =[38]Prem_Loss_Comm!T67/1000 -> 309.01569 | Q34: =+'[38]DLIC 2025.03 Plan Cumulative'!L33 -> 961.801874 | R34: =+[38]Prem_Loss_Comm!U67/1000 -> 295.79849 | S34: =+'[38]DLIC 2025.03 Plan Cumulative'!M33 -> 608.6234831 | T34: =[38]Prem_Loss_Comm!S67/1000 -> 11567.66659 | U34: =+'[38]DLIC 2025.03 Plan Cumulative'!N33 -> 11712.24059 | V34: =[38]Prem_Loss_Comm!Q67/1000 -> 2110.9768 | W34: =+'[38]DLIC 2025.03 Plan Cumulative'!P33 -> 1535.57825 | X34: 0 | Y34: =+'[38]DLIC 2025.03 Plan Cumulative'!G33 -> 0 | Z34: 0 | AA34: 0 | AB34: 0 | AC34: =+'[38]DLIC 2025.03 Plan Cumulative'!O33 -> 0 | AD34: 0 | AE34: 0 | AF34: 0 | AG34: =+'[38]DLIC 2025.03 Plan Cumulative'!J33 -> 0 | AH34: =+D34+H34+J34+L34+X34+Z34+AB34+AF34+AD34+N34+P34+R34+T34+V34+F34 -> 122693.9322 | AI34: =+E34+G34+I34+K34+M34+O34+Q34+S34+U34+W34+Y34+AA34+AC34+AE34+AG34 -> 124641.5004 | AK34: 0 | AL34: =+'[38]DLIC 2025.03 Plan Cumulative'!S33 -> 0 | AN34: 0 | AO34: =+'[38]DLIC 2025.03 Plan Cumulative'!U33 -> 0 | AQ34: =AH34+AN34+AK344 -> 122693.9322 | AR34: =AI34+AO34+AL34 -> 124641.5004
B35: Annuity claims and reserves | D35: 0 | E35: =+'[38]DLIC 2025.03 Plan Cumulative'!D34 -> 0 | F35: 0 | G35: =+'[38]DLIC 2025.03 Plan Cumulative'!E34 -> 0 | H35: 0 | I35: =+'[38]DLIC 2025.03 Plan Cumulative'!F34 -> 0 | J35: 0 | K35: =+'[38]DLIC 2025.03 Plan Cumulative'!H34 -> 0 | L35: 0 | M35: =+'[38]DLIC 2025.03 Plan Cumulative'!I34 -> 0 | N35: 0 | O35: =+'[38]DLIC 2025.03 Plan Cumulative'!K34 -> 0 | Q35: =+'[38]DLIC 2025.03 Plan Cumulative'!L34 -> 0 | S35: =+'[38]DLIC 2025.03 Plan Cumulative'!M34 -> 0 | U35: =+'[38]DLIC 2025.03 Plan Cumulative'!N34 -> 0 | W35: =+'[38]DLIC 2025.03 Plan Cumulative'!P34 -> 0 | X35: 0 | Y35: =+'[38]DLIC 2025.03 Plan Cumulative'!G34 -> 0 | Z35: 0 | AA35: 0 | AB35: 0 | AC35: =+'[38]DLIC 2025.03 Plan Cumulative'!O34 -> 0 | AD35: 0 | AE35: 0 | AF35: 0 | AG35: =+'[38]DLIC 2025.03 Plan Cumulative'!J34 -> 0 | AH35: 0 | AI35: 0 | AK35: =[38]Prem_Loss_Comm!J67/1000 -> 104.92515 | AL35: =+'[38]DLIC 2025.03 Plan Cumulative'!S34 -> 62.20338179 | AN35: 0 | AO35: =+'[38]DLIC 2025.03 Plan Cumulative'!U34 -> 0 | AQ35: =AH35+AN35+AK35 -> 104.92515 | AR35: =AI35+AO35+AL35 -> 62.20338179
A36: Total Incurred Benefits | D36: =SUM(D34:D35) -> 66497.23836 | E36: 64935.07842 | F36: =SUM(F34:F35) -> 2315.83048 | G36: 2662.712133 | H36: 17231.96851 | I36: 18077.54539 | J36: 21348.13444 | K36: 22848.51912 | L36: 91.78386 | M36: 112.047114 | N36: =SUM(N34:N35) -> 925.51898 | O36: 1187.35406 | P36: 309.01569 | Q36: 961.801874 | R36: 295.79849 | S36: 608.6234831 | T36: 11567.66659 | U36: 11712.24059 | V36: 2110.9768 | W36: 1535.57825 | X36: 0 | Y36: 0 | Z36: =SUM(Z34:Z35) -> 0 | AA36: 0 | AB36: 0 | AC36: 0 | AD36: 0 | AE36: 0 | AF36: 0 | AG36: 0 | AH36: 122693.9322 | AI36: =SUM(AI34:AI35) -> 124641.5004 | AK36: =SUM(AK34:AK35) -> 104.92515 | AL36: =SUM(AL34:AL35) -> 62.20338179 | AN36: =SUM(AN34:AN35) -> 0 | AO36: =SUM(AO34:AO35) -> 0 | AQ36: =SUM(AQ34:AQ35) -> 122798.8573 | AR36: =SUM(AR34:AR35)+1 -> 124704.7038
A38: Operating Expenses
B39: Commission expense | D39: =[38]Prem_Loss_Comm!E79/1000-[38]Prem_Loss_Comm!Q82/1000 -> 7311.06709 | E39: =+'[38]DLIC 2025.03 Plan Cumulative'!D38 -> 7428.353274 | F39: =[38]Prem_Loss_Comm!V79/1000 -> 742.28901 | G39: =+'[38]DLIC 2025.03 Plan Cumulative'!E38 -> 741.9855693 | H39: =[38]Prem_Loss_Comm!F79/1000 -> 3906.77867 | I39: =+'[38]DLIC 2025.03 Plan Cumulative'!F38 -> 4072.992932 | J39: =[38]Prem_Loss_Comm!G79/1000 -> 3470.35761 | K39: =+'[38]DLIC 2025.03 Plan Cumulative'!H38 -> 3750.222034 | L39: =[38]Prem_Loss_Comm!H79/1000 -> 17.64959 | M39: =+'[38]DLIC 2025.03 Plan Cumulative'!I38 -> 17.05708198 | N39: =[38]Prem_Loss_Comm!R79/1000 -> 499.71451 | O39: =+'[38]DLIC 2025.03 Plan Cumulative'!K38 -> 475.956567 | P39: =[38]Prem_Loss_Comm!T79/1000 -> 468.06684 | Q39: =+'[38]DLIC 2025.03 Plan Cumulative'!L38 -> 447.8362489 | R39: =[38]Prem_Loss_Comm!U79/1000 -> 207.33618 | S39: =+'[38]DLIC 2025.03 Plan Cumulative'!M38 -> 224.7640606 | T39: =[38]Prem_Loss_Comm!S79/1000 -> 1914.4876 | U39: =+'[38]DLIC 2025.03 Plan Cumulative'!N38 -> 1966.56689 | V39: =[38]Prem_Loss_Comm!Q79/1000 -> 3.05269 | W39: =+'[38]DLIC 2025.03 Plan Cumulative'!P38 -> 2.456925 | X39: =[38]Prem_Loss_Comm!L79/1000 -> 18.14398 | Y39: =+'[38]DLIC 2025.03 Plan Cumulative'!G38 -> 14.34671218 | Z39: =-[38]Prem_Loss_Comm!M79/1000 -> -0.01805 | AA39: 0 | AB39: =-[38]Prem_Loss_Comm!N79/1000 -> 0 | AC39: =+'[38]DLIC 2025.03 Plan Cumulative'!O38 -> 0 | AD39: 0 | AE39: 0 | AF39: 0 | AG39: =+'[38]DLIC 2025.03 Plan Cumulative'!J38 -> 0 | AH39: =+D39+H39+J39+L39+X39+Z39+AB39+AF39+AD39+N39+P39+R39+T39+V39+F39 -> 18558.92572 | AI39: =+E39+G39+I39+K39+M39+O39+Q39+S39+U39+W39+Y39+AA39+AC39+AE39+AG39 -> 19142.5383 | AK39: 0 | AL39: =+'[38]DLIC 2025.03 Plan Cumulative'!S38 -> 0 | AN39: 0 | AO39: =+'[38]DLIC 2025.03 Plan Cumulative'!U38 -> 0 | AQ39: =AH39+AN39+AK39 -> 18558.92572 | AR39: =AI39+AO39+AL39 -> 19142.5383
B40: General and administrative expense | D40: ='[38]G&A'!F30 -> 14322.739 | E40: =+'[38]DLIC 2025.03 Plan Cumulative'!D39 -> 14503.013 | F40: ='[38]G&A'!G30 -> 1750.781 | G40: =+'[38]DLIC 2025.03 Plan Cumulative'!E39 -> 1732.922 | H40: ='[38]G&A'!I30-'March 2025'!X40 -> 7887.670265 | I40: =+'[38]DLIC 2025.03 Plan Cumulative'!F39 -> 7967.2567 | J40: ='[38]G&A'!H30 -> 6022.862 | K40: =+'[38]DLIC 2025.03 Plan Cumulative'!H39 -> 6145.247 | L40: ='[38]G&A'!J30-'March 2025'!AF40 -> 72.788 | M40: =+'[38]DLIC 2025.03 Plan Cumulative'!I39 -> 58.332 | N40: ='[38]G&A'!K30 -> 959.28 | O40: =+'[38]DLIC 2025.03 Plan Cumulative'!K39 -> 1004.978 | P40: ='[38]G&A'!M30 -> 787.504 | Q40: =+'[38]DLIC 2025.03 Plan Cumulative'!L39 -> 815.909 | R40: =+'[38]G&A'!N30 -> 493.941 | S40: =+'[38]DLIC 2025.03 Plan Cumulative'!M39 -> 520.065 | T40: ='[38]G&A'!L30 -> 3159.009 | U40: =+'[38]DLIC 2025.03 Plan Cumulative'!N39 -> 3517.694 | V40: ='[38]G&A'!E30 -> 507.324 | W40: =+'[38]DLIC 2025.03 Plan Cumulative'!P39 -> 432.347 | X40: =X12*0.05 -> 96.0157345 | Y40: =+'[38]DLIC 2025.03 Plan Cumulative'!G39 -> 419.3293 | AA40: 0 | AC40: =+'[38]DLIC 2025.03 Plan Cumulative'!O39 -> 0 | AD40: 0 | AE40: 0 | AF40: =AF12*0.05 -> 0 | AG40: =+'[38]DLIC 2025.03 Plan Cumulative'!J39 -> 0 | AH40: =+D40+H40+J40+L40+X40+Z40+AB40+AF40+AD40+N40+P40+R40+T40+V40+F40 -> 36059.914 | AI40: 37117.093 | AK40: ='[38]G&A'!D30 -> 171.515 | AL40: =+'[38]DLIC 2025.03 Plan Cumulative'!S39 -> 137.615 | AN40: ='[38]G&A'!O30 -> 1175.037 | AO40: =+'[38]DLIC 2025.03 Plan Cumulative'!U39 -> 1144.94531 | AQ40: =AH40+AN40+AK40 -> 37406.466 | AR40: =AI40+AO40+AL40 -> 38399.65331
B41: ACA Tax | D41: 0 | E41: 0 | F41: 0 | G41: 0 | H41: 0 | I41: 0 | J41: 0 | K41: 0 | L41: 0 | M41: 0 | N41: 0 | O41: 0 | P41: 0 | Q41: 0 | R41: 0 | S41: 0 | T41: 0 | U41: 0 | V41: 0 | X41: 0 | Y41: 0 | Z41: 0 | AA41: 0 | AB41: 0 | AC41: 0 | AD41: 0 | AE41: 0 | AF41: 0 | AG41: =+'[38]DLIC 2025.03 Plan Cumulative'!J40 -> 0 | AH41: 0 | AI41: 0 | AK41: 0 | AL41: 0 | AN41: 0 | AO41: 0 | AQ41: 0 | AR41: 0
B42: Premium tax | D42: ='[38]Prem Taxes'!F7 -> 1047.177911 | E42: =+'[38]DLIC 2025.03 Plan Cumulative'!D40 -> 1051.138207 | F42: ='[38]Prem Taxes'!F8 -> 97.84232777 | G42: =+'[38]DLIC 2025.03 Plan Cumulative'!E40 -> 98.46443085 | H42: ='[38]Prem Taxes'!F9 -> 379.9428513 | I42: =+'[38]DLIC 2025.03 Plan Cumulative'!F40 -> 370.4883557 | J42: ='[38]Prem Taxes'!F10 -> 398.6084778 | K42: =+'[38]DLIC 2025.03 Plan Cumulative'!H40 -> 431.0004879 | L42: ='[38]Prem Taxes'!F11 -> 2.022973579 | M42: =+'[38]DLIC 2025.03 Plan Cumulative'!I40 -> 1.813275382 | N42: ='[38]Prem Taxes'!F12 -> 39.35002933 | O42: =+'[38]DLIC 2025.03 Plan Cumulative'!K40 -> 40.64526273 | P42: ='[38]Prem Taxes'!F14 -> 32.10993491 | Q42: =+'[38]DLIC 2025.03 Plan Cumulative'!L40 -> 34.74979914 | R42: ='[38]Prem Taxes'!F15 -> 12.26350186 | S42: =+'[38]DLIC 2025.03 Plan Cumulative'!M40 -> 13.21182495 | T42: ='[38]Prem Taxes'!F13 -> 222.1308459 | U42: =+'[38]DLIC 2025.03 Plan Cumulative'!N40 -> 238.4210274 | V42: ='[38]Prem Taxes'!F16 -> 18.39639684 | W42: =+'[38]DLIC 2025.03 Plan Cumulative'!P40 -> 16.01096125 | X42: 0 | Y42: =+'[38]DLIC 2025.03 Plan Cumulative'!G40 -> 0 | Z42: 0 | AA42: =[38]Plan!R9+[38]Plan!R22 -> 0 | AB42: 0 | AC42: =+'[38]DLIC 2025.03 Plan Cumulative'!O40 -> 0 | AD42: 0 | AE42: 0 | AF42: 0 | AG42: =+'[38]DLIC 2025.03 Plan Cumulative'!J40 -> 0 | AH42: 2249.84525 | AI42: 2295.943632 | AK42: 0 | AL42: =+'[38]DLIC 2025.03 Plan Cumulative'!S40 -> 0 | AN42: 0 | AO42: =+'[38]DLIC 2025.03 Plan Cumulative'!U40 -> 0 | AQ42: =AH42+AN42+AK42 -> 2249.84525 | AR42: =AI42+AO42+AL42 -> 2295.943632
A43: Total Operating Expenses | D43: =SUM(D39:D42) -> 22680.984 | E43: 22982.50448 | F43: 2590.912338 | G43: =SUM(G39:G42) -> 2573.372 | H43: 12174.39179 | I43: 12410.73799 | J43: 9891.828088 | K43: =SUM(K39:K42) -> 10326.46952 | L43: 92.46056358 | M43: 77.20235736 | N43: 1498.344539 | O43: 1521.57983 | P43: 1287.680775 | Q43: 1298.495048 | R43: =SUM(R39:R42) -> 713.5406819 | S43: 758.0408856 | T43: 5295.627446 | U43: 5722.681918 | V43: 528.7730868 | W43: =SUM(W39:W42) -> 450.8148863 | X43: 114.1597145 | Y43: 433.6760122 | Z43: =SUM(Z39:Z42) -> -0.01805 | AA43: 0 | AB43: 0 | AC43: 0 | AD43: 0 | AE43: 0 | AF43: 0 | AG43: 0 | AH43: 56868.68497 | AI43: =SUM(AI39:AI42) -> 58555.57493 | AK43: =SUM(AK39:AK42) -> 171.515 | AL43: =SUM(AL39:AL42) -> 137.615 | AN43: =SUM(AN39:AN42) -> 1175.037 | AO43: =SUM(AO39:AO42) -> 1144.94531 | AQ43: =SUM(AQ39:AQ42) -> 58215.23697 | AR43: =SUM(AR39:AR42) -> 59838.13524
A45: Total Incurred Benefits and Operating Expenses | D45: =+D36+D43 -> 89178.22236 | E45: =+E36+E43+1 -> 87918.5829 | F45: 4906.742818 | G45: =+G36+G43 -> 5236.084133 | H45: 29406.3603 | I45: 30488.28337 | J45: 31239.96253 | K45: 33174.98864 | L45: 184.2444236 | M45: =+M36+M43 -> 189.2494714 | N45: 2423.863519 | O45: 2708.933889 | P45: =+P36+P43 -> 1596.696465 | Q45: =+Q36+Q43 -> 2260.296922 | R45: =+R36+R43 -> 1009.339172 | S45: =+S36+S43 -> 1366.664369 | T45: 16863.29404 | U45: 17434.92251 | V45: 2639.749887 | W45: =+W36+W43 -> 1986.393136 | X45: 114.1597145 | Y45: 433.6760122 | Z45: -0.01805 | AA45: 0 | AB45: 0 | AC45: 0 | AD45: 0 | AE45: 0 | AF45: 0 | AG45: 0 | AH45: 179562.6172 | AI45: =+AI36+AI43 -> 183197.0754 | AK45: =+AK36+AK43 -> 276.44015 | AL45: =+AL36+AL43 -> 199.8183818 | AN45: =+AN36+AN43 -> 1175.037 | AO45: =+AO36+AO43 -> 1144.94531 | AQ45: =+AQ36+AQ43 -> 181014.0943 | AR45: =+AR36+AR43 -> 184542.839
A47: Pre-tax Income (Loss) Before TB & C&S Allocation | D47: =D31-D45 -> -1170.847071 | E47: =E31-E45 -> 652.0346636 | F47: =F31-F45 -> 2985.523652 | G47: 2850.119195 | H47: 2635.869893 | I47: 2192.884651 | J47: 4055.585812 | K47: =K31-K45 -> 2442.157403 | L47: -21.19218358 | M47: =M31-M45 -> -35.17458717 | N47: 1017.480471 | O47: 712.219346 | P47: =P31-P45 -> 1142.860745 | Q47: 676.7301856 | R47: =R31-R45 -> 142.2022081 | S47: =S31-S45 -> -148.3401374 | T47: 2218.911304 | U47: 2755.003556 | V47: 132.2817832 | W47: 13.44610534 | X47: 583.7485255 | Y47: 442.1244521 | Z47: =Z31-Z45 -> 103.76853 | AA47: =AA31-AA45 -> 0 | AB47: =AB31-AB45 -> 0 | AC47: =AC31-AC45 -> 0 | AD47: 0 | AE47: 0 | AF47: 0 | AG47: -0.2479957731 | AH47: 13826.19367 | AI47: =AI31-AI45 -> 12553.95684 | AK47: =AK31-AK45 -> 496.01984 | AL47: =AL31-AL45 -> 631.0687822 | AN47: =AN31-AN45 -> 2768.963 | AO47: =AO31-AO45 -> 2843.607611 | AQ47: =AQ31-AQ45 -> 17091.17651 | AR47: =AR31-AR45-1 -> 16027.63323
A48: C&S Earnings Allocation | D48: ='[38]Excess C&S Inv Income v2'!C30 -> 2039.739511 | E48: =+'[38]DLIC 2025.03 Plan Cumulative'!D50 -> 2067.261 | F48: ='[38]Excess C&S Inv Income v2'!C31 -> 25.4802008 | G48: =+'[38]DLIC 2025.03 Plan Cumulative'!E50 -> 25.474 | H48: ='[38]Excess C&S Inv Income v2'!C32 -> 115.7609073 | I48: =+'[38]DLIC 2025.03 Plan Cumulative'!F50 -> 118.289 | J48: ='[38]Excess C&S Inv Income v2'!C33 -> 745.539269 | K48: =+'[38]DLIC 2025.03 Plan Cumulative'!H50 -> 757.21 | L48: ='[38]Excess C&S Inv Income v2'!C34 -> 1.044950473 | M48: =+'[38]DLIC 2025.03 Plan Cumulative'!I50 -> 1.101 | N48: ='[38]Excess C&S Inv Income v2'!C35 -> 18.28866965 | O48: =+'[38]DLIC 2025.03 Plan Cumulative'!K50 -> 17.52 | P48: ='[38]Excess C&S Inv Income v2'!C36 -> 10.10257302 | Q48: =+'[38]DLIC 2025.03 Plan Cumulative'!L50 -> 9.82 | R48: ='[38]Excess C&S Inv Income v2'!C37 -> 2.937984267 | S48: =+'[38]DLIC 2025.03 Plan Cumulative'!M50 -> 2.484 | T48: ='[38]Excess C&S Inv Income v2'!C38 -> 105.8796995 | U48: =+'[38]DLIC 2025.03 Plan Cumulative'!N50 -> 104.963 | V48: ='[38]Excess C&S Inv Income v2'!C39 -> 40.88743789 | W48: =+'[38]DLIC 2025.03 Plan Cumulative'!P50 -> 41.532 | X48: 0 | Y48: 0 | Z48: 0 | AA48: 0 | AB48: 0 | AC48: =+'[38]DLIC 2025.03 Plan Cumulative'!O50 -> 0 | AD48: 0 | AE48: 0 | AF48: 0 | AG48: =+'[38]DLIC 2025.03 Plan Cumulative'!J49 -> 0 | AH48: =+D48+H48+J48+L48+X48+Z48+AB48+AF48+AD48+N48+P48+R48+T48+V48+F48 -> 3105.661202 | AI48: =+E48+G48+I48+K48+M48+O48+Q48+S48+U48+W48+Y48+AA48+AC48+AE48+AG48 -> 3145.654 | AK48: ='[38]Excess C&S Inv Income v2'!C40 -> 27.60917902 | AL48: =+'[38]DLIC 2025.03 Plan Cumulative'!S50 -> 27.488 | AN48: =-'[38]Excess C&S Inv Income v2'!C41 -> -3133.270381 | AO48: =+'[38]DLIC 2025.03 Plan Cumulative'!U50 -> -3173.142 | AQ48: =AQ32-AQ46 -> 0 | AR48: 0
A49: Pre-tax Income (Loss) Before Total Blue Costs | D49: =D47+D48 -> 868.8924399 | E49: =E47+E48 -> 2719.295664 | F49: =F47+F48 -> 3011.003853 | G49: 2875.593195 | H49: 2751.6308 | I49: 2311.173651 | J49: 4801.125081 | K49: 3199.367403 | L49: -20.14723311 | M49: -34.07358717 | N49: 1035.76914 | O49: 729.739346 | P49: 1152.963318 | Q49: 686.5501856 | R49: 145.1401924 | S49: -145.8561374 | T49: 2324.791004 | U49: 2859.966556 | V49: 173.169221 | W49: 54.97810534 | X49: 583.7485255 | Y49: 442.1244521 | Z49: 103.76853 | AA49: 0 | AB49: 0 | AC49: 0 | AD49: 0 | AE49: 0 | AF49: 0 | AG49: -0.2479957731 | AH49: 16931.85487 | AI49: =AI47+AI48 -> 15699.61084 | AK49: =AK47+AK48 -> 523.629019 | AL49: 658.5567822 | AN49: =AN47+AN48 -> -364.3073813 | AO49: =AO47+AO48 -> -329.5343894 | AQ49: =AQ47+AQ48 -> 17091.17651 | AR49: =AR47+AR48 -> 16027.63323
A51: GIAS Write-off | AN51: 0 | AO51: 0 | AQ51: =AN51 -> 0 | AR51: 0
A52: Total Blue Costs | AN52: =+'[38]G&A'!P31 -> 852.461 | AO52: =+'[38]DLIC 2025.03 Plan Cumulative'!U52 -> 856.35969 | AQ52: =AN52 -> 852.461 | AR52: =SUM(AO52) -> 856.35969
A54: Pre-tax Income (Loss) | D54: =D49-D52 -> 868.8924399 | E54: =E49-E52 -> 2719.295664 | F54: =F49-F52 -> 3011.003853 | G54: 2875.593195 | H54: 2751.6308 | I54: 2311.173651 | J54: 4801.125081 | K54: 3199.367403 | L54: -20.14723311 | M54: -34.07358717 | N54: 1035.76914 | O54: 729.739346 | P54: 1152.963318 | Q54: 686.5501856 | R54: 145.1401924 | S54: -145.8561374 | T54: 2324.791004 | U54: 2859.966556 | V54: =V49-V52 -> 173.169221 | W54: 54.97810534 | X54: 583.7485255 | Y54: 442.1244521 | Z54: 103.76853 | AA54: 0 | AB54: 0 | AC54: 0 | AD54: 0 | AE54: 0 | AF54: 0 | AG54: -0.2479957731 | AH54: =AH49-AH52 -> 16931.85487 | AI54: =AI49-AI52 -> 15699.61084 | AJ54: =AJ31-AJ45 -> 0 | AK54: =AK49-AK52 -> 523.629019 | AL54: 658.5567822 | AM54: =AM31-AM45 -> 0 | AN54: =AN49-AN51-AN52 -> -1216.768381 | AO54: =AO49-AO51-AO52 -> -1185.894079 | AP54: =AP31-AP45 -> 0 | AQ54: =AQ49-AQ51-AQ52 -> 16238.71551 | AR54: =AR49-AR51-AR52+1 -> 15172.27354
A56: Insurance loss ratio (insurance benefit expenses / insurance premiums) | D56: =+D34/D11 -> 0.7699988025 | E56: 0.7474891919 | F56: 0.2934303459 | G56: 0.3326212212 | H56: 0.5470203971 | I56: 0.5627574335 | J56: 0.6961232951 | K56: 0.7368771607 | L56: 0.5629107579 | M56: 0.7291534195 | N56: 0.2689411412 | O56: 0.3485887848 | P56: 0.1127976773 | Q56: 0.3284243013 | R56: 0.2568717852 | S56: 0.50673229 | T56: 0.6062017667 | U56: 0.5812919756 | V56: 1.514296157 | W56: 1.250000102 | AH56: 0.6653941357 | AI56: 0.6662716347 | AQ56: =+AQ34/AQ11 -> 0.6653941357 | AR56: =+(AR34)/AR11 -> 0.6662716347
A58: G&A Expense ratio (G&A expenses / insurance premiums incl. ASO) | D58: =+D40/(D11+D12) -> 0.1658488706 | E58: 0.1669489855 | F58: 0.2218350086 | G58: 0.2164735064 | H58: 0.2503902278 | I58: 0.2480222196 | J58: 0.1963944228 | K58: 0.1981875559 | L58: 0.4464090772 | M58: 0.3795990432 | N58: 0.2787515583 | O58: 0.2950459949 | P58: 0.2874566726 | Q58: 0.278606593 | R58: 0.4289389931 | S58: 0.432999606 | T58: 0.1655473748 | U58: 0.1745872004 | V58: 0.3639257349 | W58: 0.351941553 | X58: 0.05 | Y58: 0.1535210345 | Z58: 0 | AB58: 0 | AH58: 0.1933472719 | AI58: 0.1955543227 | AQ58: =+AQ40/(AQ11+AQ12) -> 0.2005672601 | AR58: =+AR40/(AR11+AR12) -> 0.2023115925
A60: Pre-tax Margin (Pre-tax income (loss) / total premiums) | D60: =D49/(D11+D12+D29) -> 0.01006126201 | E60: 0.03130271292 | F60: 0.3815132021 | G60: 0.3592139414 | H60: 0.08734917153 | I60: 0.07194727627 | J60: 0.1565558349 | K60: 0.1031813377 | L60: -0.1235630563 | M60: -0.221735944 | N60: 0.3009780898 | O60: 0.2142401837 | P60: 0.4208575437 | Q60: 0.2344347324 | R60: 0.1260399278 | S60: -0.1214379934 | T60: 0.1218303106 | U60: 0.1419434306 | V60: 0.1242218701 | W60: 0.0447535886 | X60: 0.8364258968 | Y60: 0.5048232676 | Z60: 1.000173975 | AH60: 0.09142740494 | AI60: 0.08353127239 | AJ60: =+AJ47/AJ14 ->  | AQ60: =AQ49/(AQ11+AQ12+AQ29) -> 0.09228769839 | AR60: =AR49/(AR11+AR12+AR29) -> 0.08527654673
